{"text_format":"1","workbook":"xlsx","n_sheets":3,"sheets":["Information","Data Reported","Concise food classifcation"],"not_rendered":{"charts":0,"images":0,"macros":1,"external_links":1,"defined_names":42,"comments":1,"pivot_tables":0},"unopened":[],"bounds":{"document_bytes":16777216,"sheet_cells":100000,"rows_first":2000,"rows_last":500,"rows_between":2000,"halvings":0,"cell_chars":16384,"cell_head_chars":4096},"cells_cut":0,"cells_raw":0,"read":"whole","date_system":"1900"}

{"sheet":"Information","index":0,"n_rows":27,"n_cols":1,"rows_kept":27,"cut":false,"hidden":false,"merged":[]}
[]
["Very important! "]
[]
["a.      Read the instructions carefully"]
["b.      Download the file Standard Sample Description on your hardware (do not change the file name)"]
["c.      Download the file Generic Reporting Format "]
["d.      Keep both Excel files in the same folder"]
["e.      Open both Excel files and enable the macros"]
["f.       Keep both files open in the same Excel instance when filling in the data"]
[]
[]
[]
["Do not change the structure of the file “Generic Reporting Format.xls”. Deletion of columns will heavily compromise the functionality of the macros included in the spreadsheet."]
[]
["Do not apply any changes in the terminology catalogues listed in the file “StandardSampleDescription.xls”"]
[]
["Fill your data in the worksheet \"Data Reported\""]
[]
["Each record should be filled in a row. Please ensure that the sample number is the same for all results of the same sample."]
[]
["Mandatory fields have the column heading marked in blue."]
[]
["Optional fields are in white."]
[]
["Clicking on the column heading a box containing explanation about what has to be filled in is displayed "]
[]
["When reporting data, it is sufficient to send only the worksheet “Data Reported“. "]

{"sheet":"Data Reported","index":1,"n_rows":203,"n_cols":73,"rows_kept":203,"cut":false,"hidden":false,"merged":[]}
["Laboratory sample code  (S.01)","Laboratory sub-sample code (S.02)","Language (S.03)","Country of sampling (S.04)","Area of sampling (S.05)","Country of origin of the product (S.06)","Area of origin of the product (S.07)","Area of origin for fisheries code (S.08)","Area of origin for fisheries text (S.09)","Country of processing (S.10)","Area of processing (S.11)","EFSA Product code (S.12)","EFSA Product code (text preview) (S.12)","Product full text description (S.14)","Method of production (S.15)","Packaging (S.16)","Product treatment (S.17)","Brand name (S.18)","Manufacturer (S.19)","Ingredients (S.20)","Product comment (S.21)","Year of production (S.22)","Month of production (S.23)","Day of production (S.24)","Year of expiry (S.25)","Month of expiry (S.26)","Day of expiry (S.27)","Year of sampling (S.28)","Month of sampling (S.29)","Day of sampling (S.30)","Programme code (S.31)","Programme legal  reference (S.32)","Sampling strategy (S.33)","Program type (S.34)","Sampling method (S.35)","Number of samples (S.36)","Lot size (S.37)","Lot size unit (S.38)","Sampling point (S.39)","Sampling point (Text preview) (S.39)","Laboratory (L.1)","Laboratory accreditation (L.2)","Laboratory country (L.3)","Local organisation (O.1)","Local organisation country (O.2)","Result code (R.01)","Year of analysis (R.02)","Month of analysis (R.03)","Day of analysis (R.04)","Parameter code (R.06)","Parameter code (Text preview) (R.07)","Parameter full text description","Parameter type (R.08)","Analytical method reference code (R.09)","Analytical method code (R.10)","Analytical method code (Text preview) (R.10)","Analytical method text (R.11)","Accreditation procedure for the analytical method (R.12)","Result unit (R.13)","Result LOD (R.14)","Result LOQ (R.15)","CC alpha (R.16)","CC beta (R.17)","Result value (R.18)","Result value recovery (R.19)","Result value corrected for recovery (R.20)","Result value uncertainty Standard deviation (R.21)","Result value uncertainty (R.22)","Percentage of moisture in the original sample (R.23)","Percentage of fat in the original sample (R.24)","Expression of result (R.25)","Type of result (R.27)","Comment of the result (R32)"]
[229861,null,"English","United Kingdom","UKJ24","United Kingdom","UKJ24",null,null,null,null,"P0251020A",null,"Lett, non-ice, protected, winter",null,null,"Unprocessed",null,null,null,null,null,null,null,null,null,null,2017,"2017-01-24","2017-01-24",null,null,"Objective Sampling","Official (National) programme","According to Dir. 2002/63/EC",null,null,null,{"$f":"IF(AN2=\"Wholesale\",\"E510A\",\"E100A\")","v":"E100A"},"Primary production",null,"Accredited","United Kingdom",null,null,"2017.142",2017,null,null,"RF-00000085-CHE","Nitrate",null,"Individual",null,"F008A","Colorimetry, Spectroscopy (Spectrometry) and Photometry",null,"ISO/IEC17025","Milligram/kilogram",null,50,null,null,4076.3,null,"No",null,null,null,null,"Whole weight","Numerical Value"]
[229793,null,"English","United Kingdom","UKJ23","United Kingdom","UKJ23",null,null,null,null,"P0251020A",null,"Lett, non-ice, protected, winter",null,null,"Unprocessed",null,null,null,null,null,null,null,null,null,null,2017,"2017-01-10","2017-01-10",null,null,"Objective Sampling","Official (National) programme","According to Dir. 2002/63/EC",null,null,null,"E100A","Primary production",null,"Accredited","United Kingdom",null,null,"2017.143",2017,null,null,"RF-00000085-CHE","Nitrate",null,"Individual",null,"F008A","Colorimetry, Spectroscopy (Spectrometry) and Photometry",null,"ISO/IEC17025","Milligram/kilogram",null,50,null,null,3536,null,"No",null,null,null,null,"Whole weight","Numerical Value"]
[229794,null,"English","United Kingdom","UKJ23","United Kingdom","UKJ23",null,null,null,null,"P0251020A",null,"Lett, non-ice, protected, winter",null,null,"Unprocessed",null,null,null,null,null,null,null,null,null,null,2017,"2017-01-10","2017-01-10",null,null,"Objective Sampling","Official (National) programme","According to Dir. 2002/63/EC",null,null,null,"E100A","Primary production",null,"Accredited","United Kingdom",null,null,"2017.144",2017,null,null,"RF-00000085-CHE","Nitrate",null,"Individual",null,"F008A","Colorimetry, Spectroscopy (Spectrometry) and Photometry",null,"ISO/IEC17025","Milligram/kilogram",null,50,null,null,4086.6,null,"No",null,null,null,null,"Whole weight","Numerical Value"]
[229821,null,"English","United Kingdom","UKD43","United Kingdom","UKD43",null,null,null,null,"P0251020A",null,"Lett, non-ice, protected, winter",null,null,"Unprocessed",null,null,null,null,null,null,null,null,null,null,2017,"2017-01-16","2017-01-16",null,null,"Objective Sampling","Official (National) programme","According to Dir. 2002/63/EC",null,null,null,"E100A","Primary production",null,"Accredited","United Kingdom",null,null,"2017.145",2017,null,null,"RF-00000085-CHE","Nitrate",null,"Individual",null,"F008A","Colorimetry, Spectroscopy (Spectrometry) and Photometry",null,"ISO/IEC17025","Milligram/kilogram",null,50,null,null,3834.6,null,"No",null,null,null,null,"Whole weight","Numerical Value"]
[229829,null,"English","United Kingdom","UKD43","United Kingdom","UKD43",null,null,null,null,"P0251020A",null,"Lett, non-ice, protected, winter",null,null,"Unprocessed",null,null,null,null,null,null,null,null,null,null,2017,"2017-01-16","2017-01-16",null,null,"Objective Sampling","Official (National) programme","According to Dir. 2002/63/EC",null,null,null,"E100A","Primary production",null,"Accredited","United Kingdom",null,null,"2017.146",2017,null,null,"RF-00000085-CHE","Nitrate",null,"Individual",null,"F008A","Colorimetry, Spectroscopy (Spectrometry) and Photometry",null,"ISO/IEC17025","Milligram/kilogram",null,50,null,null,1390.8,null,"No",null,null,null,null,"Whole weight","Numerical Value"]
[229822,null,"English","United Kingdom","UKD43","United Kingdom","UKD43",null,null,null,null,"P0251020A",null,"Lett, non-ice, protected, winter",null,null,"Unprocessed",null,null,null,null,null,null,null,null,null,null,2017,"2017-01-16","2017-01-16",null,null,"Objective Sampling","Official (National) programme","According to Dir. 2002/63/EC",null,null,null,"E100A","Primary production",null,"Accredited","United Kingdom",null,null,"2017.147",2017,null,null,"RF-00000085-CHE","Nitrate",null,"Individual",null,"F008A","Colorimetry, Spectroscopy (Spectrometry) and Photometry",null,"ISO/IEC17025","Milligram/kilogram",null,50,null,null,4797.8999999999996,null,"No",null,null,null,null,"Whole weight","Numerical Value"]
[229823,null,"English","United Kingdom","UKD43","United Kingdom","UKD43",null,null,null,null,"P0251020A",null,"Lett, non-ice, protected, winter",null,null,"Unprocessed",null,null,null,null,null,null,null,null,null,null,2017,"2017-01-16","2017-01-16",null,null,"Objective Sampling","Official (National) programme","According to Dir. 2002/63/EC",null,null,null,"E100A","Primary production",null,"Accredited","United Kingdom",null,null,"2017.148",2017,null,null,"RF-00000085-CHE","Nitrate",null,"Individual",null,"F008A","Colorimetry, Spectroscopy (Spectrometry) and Photometry",null,"ISO/IEC17025","Milligram/kilogram",null,50,null,null,4743.6000000000004,null,"No",null,null,null,null,"Whole weight","Numerical Value"]
[229824,null,"English","United Kingdom","UKD43","United Kingdom","UKD43",null,null,null,null,"P0251020A",null,"Lett, non-ice, protected, winter",null,null,"Unprocessed",null,null,null,null,null,null,null,null,null,null,2017,"2017-01-16","2017-01-16",null,null,"Objective Sampling","Official (National) programme","According to Dir. 2002/63/EC",null,null,null,"E100A","Primary production",null,"Accredited","United Kingdom",null,null,"2017.149",2017,null,null,"RF-00000085-CHE","Nitrate",null,"Individual",null,"F008A","Colorimetry, Spectroscopy (Spectrometry) and Photometry",null,"ISO/IEC17025","Milligram/kilogram",null,50,null,null,4999.5,null,"No",null,null,null,null,"Whole weight","Numerical Value"]
[229847,null,"English","United Kingdom","UKG22","Spain","UKG22",null,null,null,null,"P0251020A",null,"Imported lettuce",null,null,"Unprocessed",null,null,null,null,null,null,null,null,null,null,2017,"2017-01-23","2017-01-23",null,null,"Objective Sampling","Official (National) programme","According to Dir. 2002/63/EC",null,null,null,"E510A","Wholesale",null,"Accredited","United Kingdom",null,null,"2017.150",2017,null,null,"RF-00000085-CHE","Nitrate",null,"Individual",null,"F008A","Colorimetry, Spectroscopy (Spectrometry) and Photometry",null,"ISO/IEC17025","Milligram/kilogram",null,50,null,null,2841.1,null,"No",null,null,null,null,"Whole weight","Numerical Value"]
[229848,null,"English","United Kingdom","UKG22","Italy","UKG22",null,null,null,null,"P0251060A",null,"Imported rocket",null,null,"Unprocessed",null,null,null,null,null,null,null,null,null,null,2017,"2017-01-23","2017-01-23",null,null,"Objective Sampling","Official (National) programme","According to Dir. 2002/63/EC",null,null,null,"E510A","Wholesale",null,"Accredited","United Kingdom",null,null,"2017.151",2017,null,null,"RF-00000085-CHE","Nitrate",null,"Individual",null,"F008A","Colorimetry, Spectroscopy (Spectrometry) and Photometry",null,"ISO/IEC17025","Milligram/kilogram",null,50,null,null,5495.8,null,"No",null,null,null,null,"Whole weight","Numerical Value"]
[229849,null,"English","United Kingdom","UKG22","Italy","UKG22",null,null,null,null,"P0252010A",null,"Imported spinach",null,null,"Unprocessed",null,null,null,null,null,null,null,null,null,null,2017,"2017-01-23","2017-01-23",null,null,"Objective Sampling","Official (National) programme","According to Dir. 2002/63/EC",null,null,null,"E510A","Wholesale",null,"Accredited","United Kingdom",null,null,"2017.152",2017,null,null,"RF-00000085-CHE","Nitrate",null,"Individual",null,"F008A","Colorimetry, Spectroscopy (Spectrometry) and Photometry",null,"ISO/IEC17025","Milligram/kilogram",null,50,null,null,1821.5,null,"No",null,null,null,null,"Whole weight","Numerical Value"]
[229850,null,"English","United Kingdom","UKG22","Spain","UKG22",null,null,null,null,"P0251020A",null,"Imported lettuce",null,null,"Unprocessed",null,null,null,null,null,null,null,null,null,null,2017,"2017-01-23","2017-01-23",null,null,"Objective Sampling","Official (National) programme","According to Dir. 2002/63/EC",null,null,null,"E510A","Wholesale",null,"Accredited","United Kingdom",null,null,"2017.153",2017,null,null,"RF-00000085-CHE","Nitrate",null,"Individual",null,"F008A","Colorimetry, Spectroscopy (Spectrometry) and Photometry",null,"ISO/IEC17025","Milligram/kilogram",null,50,null,null,1061.0999999999999,null,"No",null,null,null,null,"Whole weight","Numerical Value"]
[229795,null,"English","United Kingdom","UKJ42","Spain",null,null,null,null,null,"P0251020A",null,"Imported lettuce",null,null,"Unprocessed",null,null,null,null,null,null,null,null,null,null,2017,"2017-01-10","2017-01-10",null,null,"Objective Sampling","Official (National) programme","According to Dir. 2002/63/EC",null,null,null,"E510A","Wholesale",null,"Accredited","United Kingdom",null,null,"2017.154",2017,null,null,"RF-00000085-CHE","Nitrate",null,"Individual",null,"F008A","Colorimetry, Spectroscopy (Spectrometry) and Photometry",null,"ISO/IEC17025","Milligram/kilogram",null,50,null,null,1176.0999999999999,null,"No",null,null,null,null,"Whole weight","Numerical Value"]
[229796,null,"English","United Kingdom","UKJ42","Spain",null,null,null,null,null,"P0252010A",null,"Imported spinach",null,null,"Unprocessed",null,null,null,null,null,null,null,null,null,null,2017,"2017-01-10","2017-01-10",null,null,"Objective Sampling","Official (National) programme","According to Dir. 2002/63/EC",null,null,null,"E510A","Wholesale",null,"Accredited","United Kingdom",null,null,"2017.155",2017,null,null,"RF-00000085-CHE","Nitrate",null,"Individual",null,"F008A","Colorimetry, Spectroscopy (Spectrometry) and Photometry",null,"ISO/IEC17025","Milligram/kilogram",null,50,null,null,1869.8,null,"No",null,null,null,null,"Whole weight","Numerical Value"]
[229862,null,"English","United Kingdom","UKJ42","Spain",null,null,null,null,null,"P0251020A",null,"Imported lettuce",null,null,"Unprocessed",null,null,null,null,null,null,null,null,null,null,2017,"2017-01-24","2017-01-24",null,null,"Objective Sampling","Official (National) programme","According to Dir. 2002/63/EC",null,null,null,"E510A","Wholesale",null,"Accredited","United Kingdom",null,null,"2017.156",2017,null,null,"RF-00000085-CHE","Nitrate",null,"Individual",null,"F008A","Colorimetry, Spectroscopy (Spectrometry) and Photometry",null,"ISO/IEC17025","Milligram/kilogram",null,50,null,null,686.5,null,"No",null,null,null,null,"Whole weight","Numerical Value"]
[229863,null,"English","United Kingdom","UKK15","Portugal",null,null,null,null,null,"P0251060A",null,"Imported rocket",null,null,"Unprocessed",null,null,null,null,null,null,null,null,null,null,2017,"2017-01-24","2017-01-24",null,null,"Objective Sampling","Official (National) programme","According to Dir. 2002/63/EC",null,null,null,"E510A","Wholesale",null,"Accredited","United Kingdom",null,null,"2017.157",2017,null,null,"RF-00000085-CHE","Nitrate",null,"Individual",null,"F008A","Colorimetry, Spectroscopy (Spectrometry) and Photometry",null,"ISO/IEC17025","Milligram/kilogram",null,50,null,null,4437.1000000000004,null,"No",null,null,null,null,"Whole weight","Numerical Value"]
[229925,null,"English","United Kingdom","UKJ23","United Kingdom","UKJ23",null,null,null,null,"P0251020A",null,"Lett, non-ice, protected, winter",null,null,"Unprocessed",null,null,null,null,null,null,null,null,null,null,2017,"2017-02-07","2017-02-07",null,null,"Objective Sampling","Official (National) programme","According to Dir. 2002/63/EC",null,null,null,"E100A","Primary production",null,"Accredited","United Kingdom",null,null,"2017.158",2017,null,null,"RF-00000085-CHE","Nitrate",null,"Individual",null,"F008A","Colorimetry, Spectroscopy (Spectrometry) and Photometry",null,"ISO/IEC17025","Milligram/kilogram",null,50,null,null,3457.1,null,"No",null,null,null,null,"Whole weight","Numerical Value"]
[229926,null,"English","United Kingdom","UKJ23","United Kingdom","UKJ23",null,null,null,null,"P0251020A",null,"Lett, non-ice, protected, winter",null,null,"Unprocessed",null,null,null,null,null,null,null,null,null,null,2017,"2017-02-07","2017-02-07",null,null,"Objective Sampling","Official (National) programme","According to Dir. 2002/63/EC",null,null,null,"E100A","Primary production",null,"Accredited","United Kingdom",null,null,"2017.159",2017,null,null,"RF-00000085-CHE","Nitrate",null,"Individual",null,"F008A","Colorimetry, Spectroscopy (Spectrometry) and Photometry",null,"ISO/IEC17025","Milligram/kilogram",null,50,null,null,3961.3,null,"No",null,null,null,null,"Whole weight","Numerical Value"]
[229927,null,"English","United Kingdom","UKJ24","United Kingdom","UKJ24",null,null,null,null,"P0251020A",null,"Lett, non-ice, protected, winter",null,null,"Unprocessed",null,null,null,null,null,null,null,null,null,null,2017,"2017-02-07","2017-02-07",null,null,"Objective Sampling","Official (National) programme","According to Dir. 2002/63/EC",null,null,null,"E100A","Primary production",null,"Accredited","United Kingdom",null,null,"2017.160",2017,null,null,"RF-00000085-CHE","Nitrate",null,"Individual",null,"F008A","Colorimetry, Spectroscopy (Spectrometry) and Photometry",null,"ISO/IEC17025","Milligram/kilogram",null,50,null,null,4483.6000000000004,null,"No",null,null,null,null,"Whole weight","Numerical Value"]
[229928,null,"English","United Kingdom","UKK15","Portugal",null,null,null,null,null,"P0251060A",null,"Imported rocket",null,null,"Unprocessed",null,null,null,null,null,null,null,null,null,null,2017,"2017-02-07","2017-02-07",null,null,"Objective Sampling","Official (National) programme","According to Dir. 2002/63/EC",null,null,null,"E510A","Wholesale",null,"Accredited","United Kingdom",null,null,"2017.161",2017,null,null,"RF-00000085-CHE","Nitrate",null,"Individual",null,"F008A","Colorimetry, Spectroscopy (Spectrometry) and Photometry",null,"ISO/IEC17025","Milligram/kilogram",null,50,null,null,4421.1000000000004,null,"No",null,null,null,null,"Whole weight","Numerical Value"]
[229982,null,"English","United Kingdom","UKJ42","Spain",null,null,null,null,null,"P0251020A",null,"Imported lettuce",null,null,"Unprocessed",null,null,null,null,null,null,null,null,null,null,2017,"2017-02-21","2017-02-21",null,null,"Objective Sampling","Official (National) programme","According to Dir. 2002/63/EC",null,null,null,"E510A","Wholesale",null,"Accredited","United Kingdom",null,null,"2017.162",2017,null,null,"RF-00000085-CHE","Nitrate",null,"Individual",null,"F008A","Colorimetry, Spectroscopy (Spectrometry) and Photometry",null,"ISO/IEC17025","Milligram/kilogram",null,50,null,null,857,null,"No",null,null,null,null,"Whole weight","Numerical Value"]
[229983,null,"English","United Kingdom","UKJ24","United Kingdom","UKJ24",null,null,null,null,"P0251020A",null,"Lett, non-ice, protected, winter",null,null,"Unprocessed",null,null,null,null,null,null,null,null,null,null,2017,"2017-02-21","2017-02-21",null,null,"Objective Sampling","Official (National) programme","According to Dir. 2002/63/EC",null,null,null,"E100A","Primary production",null,"Accredited","United Kingdom",null,null,"2017.163",2017,null,null,"RF-00000085-CHE","Nitrate",null,"Individual",null,"F008A","Colorimetry, Spectroscopy (Spectrometry) and Photometry",null,"ISO/IEC17025","Milligram/kilogram",null,50,null,null,3895.6,null,"No",null,null,null,null,"Whole weight","Numerical Value"]
[229984,null,"English","United Kingdom","UKK15","Portugal",null,null,null,null,null,"P0251020A",null,"Imported lettuce",null,null,"Unprocessed",null,null,null,null,null,null,null,null,null,null,2017,"2017-02-21","2017-02-21",null,null,"Objective Sampling","Official (National) programme","According to Dir. 2002/63/EC",null,null,null,"E510A","Wholesale",null,"Accredited","United Kingdom",null,null,"2017.164",2017,null,null,"RF-00000085-CHE","Nitrate",null,"Individual",null,"F008A","Colorimetry, Spectroscopy (Spectrometry) and Photometry",null,"ISO/IEC17025","Milligram/kilogram",null,50,null,null,1259,null,"No",null,null,null,null,"Whole weight","Numerical Value"]
[230001,null,"English","United Kingdom","UKJ42","France",null,null,null,null,null,"P0251010A",null,"Imported Other (lambs lettuce)",null,null,"Unprocessed",null,null,null,null,null,null,null,null,null,null,2017,"2017-02-28","2017-02-28",null,null,"Objective Sampling","Official (National) programme","According to Dir. 2002/63/EC",null,null,null,"E510A","Wholesale",null,"Accredited","United Kingdom",null,null,"2017.165",2017,null,null,"RF-00000085-CHE","Nitrate",null,"Individual",null,"F008A","Colorimetry, Spectroscopy (Spectrometry) and Photometry",null,"ISO/IEC17025","Milligram/kilogram",null,50,null,null,2058.5,null,"No",null,null,null,null,"Whole weight","Numerical Value"]
[230002,null,"English","United Kingdom","UKJ42","Italy",null,null,null,null,null,"P0252010A",null,"Imported spinach",null,null,"Unprocessed",null,null,null,null,null,null,null,null,null,null,2017,"2017-02-28","2017-02-28",null,null,"Objective Sampling","Official (National) programme","According to Dir. 2002/63/EC",null,null,null,"E510A","Wholesale",null,"Accredited","United Kingdom",null,null,"2017.166",2017,null,null,"RF-00000085-CHE","Nitrate",null,"Individual",null,"F008A","Colorimetry, Spectroscopy (Spectrometry) and Photometry",null,"ISO/IEC17025","Milligram/kilogram",null,50,null,null,2255.5,null,"No",null,null,null,null,"Whole weight","Numerical Value"]
[230003,null,"English","United Kingdom","UKJ23","United Kingdom","UKJ23",null,null,null,null,"P0251020A",null,"Lett, non-ice, protected, winter",null,null,"Unprocessed",null,null,null,null,null,null,null,null,null,null,2017,"2017-02-28","2017-02-28",null,null,"Objective Sampling","Official (National) programme","According to Dir. 2002/63/EC",null,null,null,"E100A","Primary production",null,"Accredited","United Kingdom",null,null,"2017.167",2017,null,null,"RF-00000085-CHE","Nitrate",null,"Individual",null,"F008A","Colorimetry, Spectroscopy (Spectrometry) and Photometry",null,"ISO/IEC17025","Milligram/kilogram",null,50,null,null,3357.7,null,"No",null,null,null,null,"Whole weight","Numerical Value"]
[229974,null,"English","United Kingdom","UKG22","Spain","UKG22",null,null,null,null,"P0252010A",null,"Imported spinach",null,null,"Unprocessed",null,null,null,null,null,null,null,null,null,null,2017,"2017-02-20","2017-02-20",null,null,"Objective Sampling","Official (National) programme","According to Dir. 2002/63/EC",null,null,null,"E510A","Wholesale",null,"Accredited","United Kingdom",null,null,"2017.168",2017,null,null,"RF-00000085-CHE","Nitrate",null,"Individual",null,"F008A","Colorimetry, Spectroscopy (Spectrometry) and Photometry",null,"ISO/IEC17025","Milligram/kilogram",null,50,null,null,1707.5,null,"No",null,null,null,null,"Whole weight","Numerical Value"]
[229977,null,"English","United Kingdom","UKG22","Italy","UKG22",null,null,null,null,"P0251060A",null,"Imported rocket",null,null,"Unprocessed",null,null,null,null,null,null,null,null,null,null,2017,"2017-02-20","2017-02-20",null,null,"Objective Sampling","Official (National) programme","According to Dir. 2002/63/EC",null,null,null,"E510A","Wholesale",null,"Accredited","United Kingdom",null,null,"2017.169",2017,null,null,"RF-00000085-CHE","Nitrate",null,"Individual",null,"F008A","Colorimetry, Spectroscopy (Spectrometry) and Photometry",null,"ISO/IEC17025","Milligram/kilogram",null,50,null,null,6074.4,null,"No",null,null,null,null,"Whole weight","Numerical Value"]
[229973,null,"English","United Kingdom","UKG22","Spain","UKG22",null,null,null,null,"P0251020A",null,"Imported lettuce",null,null,"Unprocessed",null,null,null,null,null,null,null,null,null,null,2017,"2017-02-20","2017-02-20",null,null,"Objective Sampling","Official (National) programme","According to Dir. 2002/63/EC",null,null,null,"E510A","Wholesale",null,"Accredited","United Kingdom",null,null,"2017.170",2017,null,null,"RF-00000085-CHE","Nitrate",null,"Individual",null,"F008A","Colorimetry, Spectroscopy (Spectrometry) and Photometry",null,"ISO/IEC17025","Milligram/kilogram",null,50,null,null,959.2,null,"No",null,null,null,null,"Whole weight","Numerical Value"]
[229975,null,"English","United Kingdom","UKG22","Spain","UKG22",null,null,null,null,"P0251020A",null,"Imported lettuce",null,null,"Unprocessed",null,null,null,null,null,null,null,null,null,null,2017,"2017-02-20","2017-02-20",null,null,"Objective Sampling","Official (National) programme","According to Dir. 2002/63/EC",null,null,null,"E510A","Wholesale",null,"Accredited","United Kingdom",null,null,"2017.171",2017,null,null,"RF-00000085-CHE","Nitrate",null,"Individual",null,"F008A","Colorimetry, Spectroscopy (Spectrometry) and Photometry",null,"ISO/IEC17025","Milligram/kilogram",null,50,null,null,1750,null,"No",null,null,null,null,"Whole weight","Numerical Value"]
[229976,null,"English","United Kingdom","UKG22","Spain","UKG22",null,null,null,null,"P0251020A",null,"Imported lettuce",null,null,"Unprocessed",null,null,null,null,null,null,null,null,null,null,2017,"2017-02-20","2017-02-20",null,null,"Objective Sampling","Official (National) programme","According to Dir. 2002/63/EC",null,null,null,"E510A","Wholesale",null,"Accredited","United Kingdom",null,null,"2017.172",2017,null,null,"RF-00000085-CHE","Nitrate",null,"Individual",null,"F008A","Colorimetry, Spectroscopy (Spectrometry) and Photometry",null,"ISO/IEC17025","Milligram/kilogram",null,50,null,null,478.4,null,"No",null,null,null,null,"Whole weight","Numerical Value"]
[230020,null,"English","United Kingdom","UKD43","United Kingdom","UKD43",null,null,null,null,"P0251020A",null,"Lett, non-ice, protected, winter",null,null,"Unprocessed",null,null,null,null,null,null,null,null,null,null,2017,"2017-03-06","2017-03-06",null,null,"Objective Sampling","Official (National) programme","According to Dir. 2002/63/EC",null,null,null,"E100A","Primary production",null,"Accredited","United Kingdom",null,null,"2017.173",2017,null,null,"RF-00000085-CHE","Nitrate",null,"Individual",null,"F008A","Colorimetry, Spectroscopy (Spectrometry) and Photometry",null,"ISO/IEC17025","Milligram/kilogram",null,50,null,null,3438.7,null,"No",null,null,null,null,"Whole weight","Numerical Value"]
[230021,null,"English","United Kingdom","UKD43","United Kingdom","UKD43",null,null,null,null,"P0251020A",null,"Lett, non-ice, protected, winter",null,null,"Unprocessed",null,null,null,null,null,null,null,null,null,null,2017,"2017-03-06","2017-03-06",null,null,"Objective Sampling","Official (National) programme","According to Dir. 2002/63/EC",null,null,null,"E100A","Primary production",null,"Accredited","United Kingdom",null,null,"2017.174",2017,null,null,"RF-00000085-CHE","Nitrate",null,"Individual",null,"F008A","Colorimetry, Spectroscopy (Spectrometry) and Photometry",null,"ISO/IEC17025","Milligram/kilogram",null,50,null,null,4294.6000000000004,null,"No",null,null,null,null,"Whole weight","Numerical Value"]
[230022,null,"English","United Kingdom","UKD43","United Kingdom","UKD43",null,null,null,null,"P0251020A",null,"Lett, non-ice, protected, winter",null,null,"Unprocessed",null,null,null,null,null,null,null,null,null,null,2017,"2017-03-06","2017-03-06",null,null,"Objective Sampling","Official (National) programme","According to Dir. 2002/63/EC",null,null,null,"E100A","Primary production",null,"Accredited","United Kingdom",null,null,"2017.175",2017,null,null,"RF-00000085-CHE","Nitrate",null,"Individual",null,"F008A","Colorimetry, Spectroscopy (Spectrometry) and Photometry",null,"ISO/IEC17025","Milligram/kilogram",null,50,null,null,2357.8000000000002,null,"No",null,null,null,null,"Whole weight","Numerical Value"]
[230266,null,"English","United Kingdom","UKG22","Italy","UKG22",null,null,null,null,"P0252010A",null,"Imported spinach",null,null,"Unprocessed",null,null,null,null,null,null,null,null,null,null,2017,"2017-03-27","2017-03-27",null,null,"Objective Sampling","Official (National) programme","According to Dir. 2002/63/EC",null,null,null,"E510A","Wholesale",null,"Accredited","United Kingdom",null,null,"2017.176",2017,null,null,"RF-00000085-CHE","Nitrate",null,"Individual",null,"F008A","Colorimetry, Spectroscopy (Spectrometry) and Photometry",null,"ISO/IEC17025","Milligram/kilogram",null,50,null,null,935.6,null,"No",null,null,null,null,"Whole weight","Numerical Value"]
[230268,null,"English","United Kingdom","UKG22","Italy","UKG22",null,null,null,null,"P0251060A",null,"Imported rocket",null,null,"Unprocessed",null,null,null,null,null,null,null,null,null,null,2017,"2017-03-27","2017-03-27",null,null,"Objective Sampling","Official (National) programme","According to Dir. 2002/63/EC",null,null,null,"E510A","Wholesale",null,"Accredited","United Kingdom",null,null,"2017.177",2017,null,null,"RF-00000085-CHE","Nitrate",null,"Individual",null,"F008A","Colorimetry, Spectroscopy (Spectrometry) and Photometry",null,"ISO/IEC17025","Milligram/kilogram",null,50,null,null,2595.3000000000002,null,"No",null,null,null,null,"Whole weight","Numerical Value"]
[230269,null,"English","United Kingdom","UKG22","Spain","UKG22",null,null,null,null,"P0251020A",null,"Imported lettuce",null,null,"Unprocessed",null,null,null,null,null,null,null,null,null,null,2017,"2017-03-27","2017-03-27",null,null,"Objective Sampling","Official (National) programme","According to Dir. 2002/63/EC",null,null,null,"E510A","Wholesale",null,"Accredited","United Kingdom",null,null,"2017.178",2017,null,null,"RF-00000085-CHE","Nitrate",null,"Individual",null,"F008A","Colorimetry, Spectroscopy (Spectrometry) and Photometry",null,"ISO/IEC17025","Milligram/kilogram",null,50,null,null,645,null,"No",null,null,null,null,"Whole weight","Numerical Value"]
[230270,null,"English","United Kingdom","UKG22","Spain","UKG22",null,null,null,null,"P0251020A",null,"Imported lettuce",null,null,"Unprocessed",null,null,null,null,null,null,null,null,null,null,2017,"2017-03-27","2017-03-27",null,null,"Objective Sampling","Official (National) programme","According to Dir. 2002/63/EC",null,null,null,"E510A","Wholesale",null,"Accredited","United Kingdom",null,null,"2017.179",2017,null,null,"RF-00000085-CHE","Nitrate",null,"Individual",null,"F008A","Colorimetry, Spectroscopy (Spectrometry) and Photometry",null,"ISO/IEC17025","Milligram/kilogram",null,50,null,null,536.79999999999995,null,"No",null,null,null,null,"Whole weight","Numerical Value"]
[230267,null,"English","United Kingdom","UKG22","Spain","UKG22",null,null,null,null,"P0252010A",null,"Imported spinach",null,null,"Unprocessed",null,null,null,null,null,null,null,null,null,null,2017,"2017-03-27","2017-03-27",null,null,"Objective Sampling","Official (National) programme","According to Dir. 2002/63/EC",null,null,null,"E510A","Wholesale",null,"Accredited","United Kingdom",null,null,"2017.180",2017,null,null,"RF-00000085-CHE","Nitrate",null,"Individual",null,"F008A","Colorimetry, Spectroscopy (Spectrometry) and Photometry",null,"ISO/IEC17025","Milligram/kilogram",null,50,null,null,1597,null,"No",null,null,null,null,"Whole weight","Numerical Value"]
[230282,null,"English","United Kingdom","UKJ24","United Kingdom","UKJ24",null,null,null,null,"P0251020A",null,"Lett, non-ice, protected, winter",null,null,"Unprocessed",null,null,null,null,null,null,null,null,null,null,2017,"2017-03-29","2017-03-29",null,null,"Objective Sampling","Official (National) programme","According to Dir. 2002/63/EC",null,null,null,"E100A","Primary production",null,"Accredited","United Kingdom",null,null,"2017.181",2017,null,null,"RF-00000085-CHE","Nitrate",null,"Individual",null,"F008A","Colorimetry, Spectroscopy (Spectrometry) and Photometry",null,"ISO/IEC17025","Milligram/kilogram",null,50,null,null,3571.6,null,"No",null,null,null,null,"Whole weight","Numerical Value"]
[230283,null,"English","United Kingdom","UKJ23","United Kingdom","UKJ23",null,null,null,null,"P0251020A",null,"Lett, non-ice, protected, winter",null,null,"Unprocessed",null,null,null,null,null,null,null,null,null,null,2017,"2017-03-29","2017-03-29",null,null,"Objective Sampling","Official (National) programme","According to Dir. 2002/63/EC",null,null,null,"E100A","Primary production",null,"Accredited","United Kingdom",null,null,"2017.182",2017,null,null,"RF-00000085-CHE","Nitrate",null,"Individual",null,"F008A","Colorimetry, Spectroscopy (Spectrometry) and Photometry",null,"ISO/IEC17025","Milligram/kilogram",null,50,null,null,2289.3000000000002,null,"No",null,null,null,null,"Whole weight","Numerical Value"]
[230067,null,"English","United Kingdom","UKJ42","Spain",null,null,null,null,null,"P0251060A",null,"Imported rocket",null,null,"Unprocessed",null,null,null,null,null,null,null,null,null,null,2017,"2017-03-14","2017-03-14",null,null,"Objective Sampling","Official (National) programme","According to Dir. 2002/63/EC",null,null,null,"E510A","Wholesale",null,"Accredited","United Kingdom",null,null,"2017.183",2017,null,null,"RF-00000085-CHE","Nitrate",null,"Individual",null,"F008A","Colorimetry, Spectroscopy (Spectrometry) and Photometry",null,"ISO/IEC17025","Milligram/kilogram",null,50,null,null,1610.5,null,"No",null,null,null,null,"Whole weight","Numerical Value"]
[230068,null,"English","United Kingdom","UKJ42","Spain",null,null,null,null,null,"P0251020A",null,"Imported lettuce",null,null,"Unprocessed",null,null,null,null,null,null,null,null,null,null,2017,"2017-03-14","2017-03-14",null,null,"Objective Sampling","Official (National) programme","According to Dir. 2002/63/EC",null,null,null,"E510A","Wholesale",null,"Accredited","United Kingdom",null,null,"2017.184",2017,null,null,"RF-00000085-CHE","Nitrate",null,"Individual",null,"F008A","Colorimetry, Spectroscopy (Spectrometry) and Photometry",null,"ISO/IEC17025","Milligram/kilogram",null,50,null,null,1051,null,"No",null,null,null,null,"Whole weight","Numerical Value"]
[230069,null,"English","United Kingdom","UKJ42","Italy",null,null,null,null,null,"P0252010A",null,"Imported spinach",null,null,"Unprocessed",null,null,null,null,null,null,null,null,null,null,2017,"2017-03-14","2017-03-14",null,null,"Objective Sampling","Official (National) programme","According to Dir. 2002/63/EC",null,null,null,"E510A","Wholesale",null,"Accredited","United Kingdom",null,null,"2017.185",2017,null,null,"RF-00000085-CHE","Nitrate",null,"Individual",null,"F008A","Colorimetry, Spectroscopy (Spectrometry) and Photometry",null,"ISO/IEC17025","Milligram/kilogram",null,50,null,null,1704.6,null,"No",null,null,null,null,"Whole weight","Numerical Value"]
[230249,null,"English","United Kingdom","UKJ42","Spain",null,null,null,null,null,"P0252010A",null,"Imported spinach",null,null,"Unprocessed",null,null,null,null,null,null,null,null,null,null,2017,"2017-03-22","2017-03-22",null,null,"Objective Sampling","Official (National) programme","According to Dir. 2002/63/EC",null,null,null,"E510A","Wholesale",null,"Accredited","United Kingdom",null,null,"2017.186",2017,null,null,"RF-00000085-CHE","Nitrate",null,"Individual",null,"F008A","Colorimetry, Spectroscopy (Spectrometry) and Photometry",null,"ISO/IEC17025","Milligram/kilogram",null,50,null,null,2147.3000000000002,null,"No",null,null,null,null,"Whole weight","Numerical Value"]
[230250,null,"English","United Kingdom","UKK15","Spain",null,null,null,null,null,"P0251020A",null,"Imported lettuce",null,null,"Unprocessed",null,null,null,null,null,null,null,null,null,null,2017,"2017-03-22","2017-03-22",null,null,"Objective Sampling","Official (National) programme","According to Dir. 2002/63/EC",null,null,null,"E510A","Wholesale",null,"Accredited","United Kingdom",null,null,"2017.187",2017,null,null,"RF-00000085-CHE","Nitrate",null,"Individual",null,"F008A","Colorimetry, Spectroscopy (Spectrometry) and Photometry",null,"ISO/IEC17025","Milligram/kilogram",null,50,null,null,1016.2,null,"No",null,null,null,null,"Whole weight","Numerical Value"]
[230359,null,"English","United Kingdom","UKE12","United Kingdom","UKE12",null,null,null,null,"P0251020A",null,"Lett, non-ice, protected, summer",null,null,"Unprocessed",null,null,null,null,null,null,null,null,null,null,2017,"2017-04-03","2017-04-03",null,null,"Objective Sampling","Official (National) programme","According to Dir. 2002/63/EC",null,null,null,"E100A","Primary production",null,"Accredited","United Kingdom",null,null,"2017.188",2017,null,null,"RF-00000085-CHE","Nitrate",null,"Individual",null,"F008A","Colorimetry, Spectroscopy (Spectrometry) and Photometry",null,"ISO/IEC17025","Milligram/kilogram",null,50,null,null,3359.2,null,"No",null,null,null,null,"Whole weight","Numerical Value"]
[230360,null,"English","United Kingdom","UKE12","United Kingdom","UKE12",null,null,null,null,"P0251020A",null,"Lett, non-ice, protected, summer",null,null,"Unprocessed",null,null,null,null,null,null,null,null,null,null,2017,"2017-04-03","2017-04-03",null,null,"Objective Sampling","Official (National) programme","According to Dir. 2002/63/EC",null,null,null,"E100A","Primary production",null,"Accredited","United Kingdom",null,null,"2017.189",2017,null,null,"RF-00000085-CHE","Nitrate",null,"Individual",null,"F008A","Colorimetry, Spectroscopy (Spectrometry) and Photometry",null,"ISO/IEC17025","Milligram/kilogram",null,50,null,null,3362.1,null,"No",null,null,null,null,"Whole weight","Numerical Value"]
[230361,null,"English","United Kingdom","UKE12","United Kingdom","UKE12",null,null,null,null,"P0251020A",null,"Lett, non-ice, protected, summer",null,null,"Unprocessed",null,null,null,null,null,null,null,null,null,null,2017,"2017-04-03","2017-04-03",null,null,"Objective Sampling","Official (National) programme","According to Dir. 2002/63/EC",null,null,null,"E100A","Primary production",null,"Accredited","United Kingdom",null,null,"2017.190",2017,null,null,"RF-00000085-CHE","Nitrate",null,"Individual",null,"F008A","Colorimetry, Spectroscopy (Spectrometry) and Photometry",null,"ISO/IEC17025","Milligram/kilogram",null,50,null,null,3680.2,null,"No",null,null,null,null,"Whole weight","Numerical Value"]
[230362,null,"English","United Kingdom","UKE12","United Kingdom","UKE12",null,null,null,null,"P0251020A",null,"Lett, non-ice, protected, summer",null,null,"Unprocessed",null,null,null,null,null,null,null,null,null,null,2017,"2017-04-03","2017-04-03",null,null,"Objective Sampling","Official (National) programme","According to Dir. 2002/63/EC",null,null,null,"E100A","Primary production",null,"Accredited","United Kingdom",null,null,"2017.191",2017,null,null,"RF-00000085-CHE","Nitrate",null,"Individual",null,"F008A","Colorimetry, Spectroscopy (Spectrometry) and Photometry",null,"ISO/IEC17025","Milligram/kilogram",null,50,null,null,2343.6,null,"No",null,null,null,null,"Whole weight","Numerical Value"]
[230513,null,"English","United Kingdom","UKD43","United Kingdom","UKD43",null,null,null,null,"P0251020A",null,"Lett, non-ice, protected, summer",null,null,"Unprocessed",null,null,null,null,null,null,null,null,null,null,2017,"2017-04-24","2017-04-24",null,null,"Objective Sampling","Official (National) programme","According to Dir. 2002/63/EC",null,null,null,"E100A","Primary production",null,"Accredited","United Kingdom",null,null,"2017.192",2017,null,null,"RF-00000085-CHE","Nitrate",null,"Individual",null,"F008A","Colorimetry, Spectroscopy (Spectrometry) and Photometry",null,"ISO/IEC17025","Milligram/kilogram",null,50,null,null,3155.8,null,"No",null,null,null,null,"Whole weight","Numerical Value"]
[230514,null,"English","United Kingdom","UKD43","United Kingdom","UKD43",null,null,null,null,"P0251020A",null,"Lett, non-ice, protected, summer",null,null,"Unprocessed",null,null,null,null,null,null,null,null,null,null,2017,"2017-04-24","2017-04-24",null,null,"Objective Sampling","Official (National) programme","According to Dir. 2002/63/EC",null,null,null,"E100A","Primary production",null,"Accredited","United Kingdom",null,null,"2017.193",2017,null,null,"RF-00000085-CHE","Nitrate",null,"Individual",null,"F008A","Colorimetry, Spectroscopy (Spectrometry) and Photometry",null,"ISO/IEC17025","Milligram/kilogram",null,50,null,null,3122.4,null,"No",null,null,null,null,"Whole weight","Numerical Value"]
[230515,null,"English","United Kingdom","UKD43","United Kingdom","UKD43",null,null,null,null,"P0251020A",null,"Lett, non-ice, protected, summer",null,null,"Unprocessed",null,null,null,null,null,null,null,null,null,null,2017,"2017-04-24","2017-04-24",null,null,"Objective Sampling","Official (National) programme","According to Dir. 2002/63/EC",null,null,null,"E100A","Primary production",null,"Accredited","United Kingdom",null,null,"2017.194",2017,null,null,"RF-00000085-CHE","Nitrate",null,"Individual",null,"F008A","Colorimetry, Spectroscopy (Spectrometry) and Photometry",null,"ISO/IEC17025","Milligram/kilogram",null,50,null,null,2832,null,"No",null,null,null,null,"Whole weight","Numerical Value"]
[230516,null,"English","United Kingdom","UKD43","United Kingdom","UKD43",null,null,null,null,"P0251020A",null,"Lett, non-ice, protected, summer",null,null,"Unprocessed",null,null,null,null,null,null,null,null,null,null,2017,"2017-04-24","2017-04-24",null,null,"Objective Sampling","Official (National) programme","According to Dir. 2002/63/EC",null,null,null,"E100A","Primary production",null,"Accredited","United Kingdom",null,null,"2017.195",2017,null,null,"RF-00000085-CHE","Nitrate",null,"Individual",null,"F008A","Colorimetry, Spectroscopy (Spectrometry) and Photometry",null,"ISO/IEC17025","Milligram/kilogram",null,50,null,null,1462.1,null,"No",null,null,null,null,"Whole weight","Numerical Value"]
[230450,null,"English","United Kingdom","UKJ24","United Kingdom","UKJ24",null,null,null,null,"P0251020A",null,"Lett, non-ice, protected, summer",null,null,"Unprocessed",null,null,null,null,null,null,null,null,null,null,2017,"2017-04-11","2017-04-11",null,null,"Objective Sampling","Official (National) programme","According to Dir. 2002/63/EC",null,null,null,"E100A","Primary production",null,"Accredited","United Kingdom",null,null,"2017.196",2017,null,null,"RF-00000085-CHE","Nitrate",null,"Individual",null,"F008A","Colorimetry, Spectroscopy (Spectrometry) and Photometry",null,"ISO/IEC17025","Milligram/kilogram",null,50,null,null,4390.6000000000004,null,"No",null,null,null,null,"Whole weight","Numerical Value"]
[230451,null,"English","United Kingdom","UKJ24","United Kingdom","UKJ24",null,null,null,null,"P0251020A",null,"Lett, non-ice, protected, summer",null,null,"Unprocessed",null,null,null,null,null,null,null,null,null,null,2017,"2017-04-11","2017-04-11",null,null,"Objective Sampling","Official (National) programme","According to Dir. 2002/63/EC",null,null,null,"E100A","Primary production",null,"Accredited","United Kingdom",null,null,"2017.197",2017,null,null,"RF-00000085-CHE","Nitrate",null,"Individual",null,"F008A","Colorimetry, Spectroscopy (Spectrometry) and Photometry",null,"ISO/IEC17025","Milligram/kilogram",null,50,null,null,3502.4,null,"No",null,null,null,null,"Whole weight","Numerical Value"]
[230452,null,"English","United Kingdom","UKJ23","United Kingdom","UKJ23",null,null,null,null,"P0251020A",null,"Lett, non-ice, protected, summer",null,null,"Unprocessed",null,null,null,null,null,null,null,null,null,null,2017,"2017-04-11","2017-04-11",null,null,"Objective Sampling","Official (National) programme","According to Dir. 2002/63/EC",null,null,null,"E100A","Primary production",null,"Accredited","United Kingdom",null,null,"2017.198",2017,null,null,"RF-00000085-CHE","Nitrate",null,"Individual",null,"F008A","Colorimetry, Spectroscopy (Spectrometry) and Photometry",null,"ISO/IEC17025","Milligram/kilogram",null,50,null,null,3633,null,"No",null,null,null,null,"Whole weight","Numerical Value"]
[230507,null,"English","United Kingdom","UKJ24","United Kingdom","UKJ24",null,null,null,null,"P0251020A",null,"Lett, non-ice, protected, summer",null,null,"Unprocessed",null,null,null,null,null,null,null,null,null,null,2017,"2017-04-18","2017-04-18",null,null,"Objective Sampling","Official (National) programme","According to Dir. 2002/63/EC",null,null,null,"E100A","Primary production",null,"Accredited","United Kingdom",null,null,"2017.199",2017,null,null,"RF-00000085-CHE","Nitrate",null,"Individual",null,"F008A","Colorimetry, Spectroscopy (Spectrometry) and Photometry",null,"ISO/IEC17025","Milligram/kilogram",null,50,null,null,2253.6999999999998,null,"No",null,null,null,null,"Whole weight","Numerical Value"]
[230506,null,"English","United Kingdom","UKJ23","United Kingdom","UKJ23",null,null,null,null,"P0251020A",null,"Lett, non-ice, protected, summer",null,null,"Unprocessed",null,null,null,null,null,null,null,null,null,null,2017,"2017-04-18","2017-04-18",null,null,"Objective Sampling","Official (National) programme","According to Dir. 2002/63/EC",null,null,null,"E100A","Primary production",null,"Accredited","United Kingdom",null,null,"2017.200",2017,null,null,"RF-00000085-CHE","Nitrate",null,"Individual",null,"F008A","Colorimetry, Spectroscopy (Spectrometry) and Photometry",null,"ISO/IEC17025","Milligram/kilogram",null,50,null,null,3461.5,null,"No",null,null,null,null,"Whole weight","Numerical Value"]
[231057,null,"English","United Kingdom","UKH13","United Kingdom","UKH13",null,null,null,null,"P0252010A",null,"Spinach",null,null,"Unprocessed",null,null,null,null,null,null,null,null,null,null,2017,"2017-05-24","2017-05-24",null,null,"Objective Sampling","Official (National) programme","According to Dir. 2002/63/EC",null,null,null,"E100A","Primary production",null,"Accredited","United Kingdom",null,null,"2017.1",2017,null,null,"RF-00000085-CHE","Nitrate",null,"Individual",null,"F008A","Colorimetry, Spectroscopy (Spectrometry) and Photometry",null,"ISO/IEC17025","Milligram/kilogram",null,50,null,null,553.20000000000005,null,"No",null,null,null,null,"Whole weight","Numerical Value"]
[231058,null,"English","United Kingdom","UKH13","United Kingdom","UKH13",null,null,null,null,"P0252010A",null,"Spinach",null,null,"Unprocessed",null,null,null,null,null,null,null,null,null,null,2017,"2017-05-24","2017-05-24",null,null,"Objective Sampling","Official (National) programme","According to Dir. 2002/63/EC",null,null,null,"E100A","Primary production",null,"Accredited","United Kingdom",null,null,"2017.2",2017,null,null,"RF-00000085-CHE","Nitrate",null,"Individual",null,"F008A","Colorimetry, Spectroscopy (Spectrometry) and Photometry",null,"ISO/IEC17025","Milligram/kilogram",null,50,null,null,863.2,null,"No",null,null,null,null,"Whole weight","Numerical Value"]
[231183,null,"English","United Kingdom","UKF30","United Kingdom","UKF30",null,null,null,null,"P0251020A",null,"Lettuce",null,null,"Unprocessed",null,null,null,null,null,null,null,null,null,null,2017,"2017-05-30","2017-05-30",null,null,"Objective Sampling","Official (National) programme","According to Dir. 2002/63/EC",null,null,null,"E100A","Primary production",null,"Accredited","United Kingdom",null,null,"2017.3",2017,null,null,"RF-00000085-CHE","Nitrate",null,"Individual",null,"F008A","Colorimetry, Spectroscopy (Spectrometry) and Photometry",null,"ISO/IEC17025","Milligram/kilogram",null,50,null,null,1292,null,"No",null,null,null,null,"Whole weight","Numerical Value"]
[231184,null,"English","United Kingdom","UKF30","United Kingdom","UKF30",null,null,null,null,"P0251020A",null,"Lettuce",null,null,"Unprocessed",null,null,null,null,null,null,null,null,null,null,2017,"2017-05-30","2017-05-30",null,null,"Objective Sampling","Official (National) programme","According to Dir. 2002/63/EC",null,null,null,"E100A","Primary production",null,"Accredited","United Kingdom",null,null,"2017.4",2017,null,null,"RF-00000085-CHE","Nitrate",null,"Individual",null,"F008A","Colorimetry, Spectroscopy (Spectrometry) and Photometry",null,"ISO/IEC17025","Milligram/kilogram",null,50,null,null,918.4,null,"No",null,null,null,null,"Whole weight","Numerical Value"]
[230684,null,"English","United Kingdom","UKD43","United Kingdom","UKD43",null,null,null,null,"P0251060A",null,"Rocket",null,null,"Unprocessed",null,null,null,null,null,null,null,null,null,null,2017,"2017-05-10","2017-05-10",null,null,"Objective Sampling","Official (National) programme","According to Dir. 2002/63/EC",null,null,null,"E100A","Primary production",null,"Accredited","United Kingdom",null,null,"2017.5",2017,null,null,"RF-00000085-CHE","Nitrate",null,"Individual",null,"F008A","Colorimetry, Spectroscopy (Spectrometry) and Photometry",null,"ISO/IEC17025","Milligram/kilogram",null,50,null,null,61.8,null,"No",null,null,null,null,"Whole weight","Numerical Value"]
[230685,null,"English","United Kingdom","UKD43","United Kingdom","UKD43",null,null,null,null,"P0251020A",null,"Lettuce",null,null,"Unprocessed",null,null,null,null,null,null,null,null,null,null,2017,"2017-05-10","2017-05-10",null,null,"Objective Sampling","Official (National) programme","According to Dir. 2002/63/EC",null,null,null,{"$f":"IF(AN66=\"Wholesale\",\"E510A\",\"E100A\")","v":"E100A"},"Primary production",null,"Accredited","United Kingdom",null,null,"2017.6",2017,null,null,"RF-00000085-CHE","Nitrate",null,"Individual",null,"F008A","Colorimetry, Spectroscopy (Spectrometry) and Photometry",null,"ISO/IEC17025","Milligram/kilogram",null,50,null,null,"<50",null,"No",null,null,null,null,"Whole weight","Non Quantified Value (<LOQ)"]
[230686,null,"English","United Kingdom","UKD43","United Kingdom","UKD43",null,null,null,null,"P0252010A",null,"Spinach",null,null,"Unprocessed",null,null,null,null,null,null,null,null,null,null,2017,"2017-05-10","2017-05-10",null,null,"Objective Sampling","Official (National) programme","According to Dir. 2002/63/EC",null,null,null,"E100A","Primary production",null,"Accredited","United Kingdom",null,null,"2017.7",2017,null,null,"RF-00000085-CHE","Nitrate",null,"Individual",null,"F008A","Colorimetry, Spectroscopy (Spectrometry) and Photometry",null,"ISO/IEC17025","Milligram/kilogram",null,50,null,null,"<50",null,"No",null,null,null,null,"Whole weight","Non Quantified Value (<LOQ)"]
[230687,null,"English","United Kingdom","UKD43","United Kingdom","UKD43",null,null,null,null,"P0251070A",null,"Other (mizuna)",null,null,"Unprocessed",null,null,null,null,null,null,null,null,null,null,2017,"2017-05-10","2017-05-10",null,null,"Objective Sampling","Official (National) programme","According to Dir. 2002/63/EC",null,null,null,"E100A","Primary production",null,"Accredited","United Kingdom",null,null,"2017.8",2017,null,null,"RF-00000085-CHE","Nitrate",null,"Individual",null,"F008A","Colorimetry, Spectroscopy (Spectrometry) and Photometry",null,"ISO/IEC17025","Milligram/kilogram",null,50,null,null,"<50",null,"No",null,null,null,null,"Whole weight","Non Quantified Value (<LOQ)"]
[231027,null,"English","United Kingdom","UKJ42","Spain",null,null,null,null,null,"P0251020A",null,"Imported lettuce",null,null,"Unprocessed",null,null,null,null,null,null,null,null,null,null,2017,"2017-05-23","2017-05-23",null,null,"Objective Sampling","Official (National) programme","According to Dir. 2002/63/EC",null,null,null,"E510A","Wholesale",null,"Accredited","United Kingdom",null,null,"2017.9",2017,null,null,"RF-00000085-CHE","Nitrate",null,"Individual",null,"F008A","Colorimetry, Spectroscopy (Spectrometry) and Photometry",null,"ISO/IEC17025","Milligram/kilogram",null,50,null,null,277.2,null,"No",null,null,null,null,"Whole weight","Numerical Value"]
[231026,null,"English","United Kingdom","UKJ33","Italy",null,null,null,null,null,"P0251060A",null,"Imported rocket",null,null,"Unprocessed",null,null,null,null,null,null,null,null,null,null,2017,"2017-05-23","2017-05-23",null,null,"Objective Sampling","Official (National) programme","According to Dir. 2002/63/EC",null,null,null,"E510A","Wholesale",null,"Accredited","United Kingdom",null,null,"2017.10",2017,null,null,"RF-00000085-CHE","Nitrate",null,"Individual",null,"F008A","Colorimetry, Spectroscopy (Spectrometry) and Photometry",null,"ISO/IEC17025","Milligram/kilogram",null,50,null,null,346.1,null,"No",null,null,null,null,"Whole weight","Numerical Value"]
[231180,null,"English","United Kingdom","UKJ42","United Kingdom","UKJ42",null,null,null,null,"P0251020A",null,"Lettuce",null,null,"Unprocessed",null,null,null,null,null,null,null,null,null,null,2017,"2017-05-30","2017-05-30",null,null,"Objective Sampling","Official (National) programme","According to Dir. 2002/63/EC",null,null,null,"E100A","Primary production",null,"Accredited","United Kingdom",null,null,"2017.11",2017,null,null,"RF-00000085-CHE","Nitrate",null,"Individual",null,"F008A","Colorimetry, Spectroscopy (Spectrometry) and Photometry",null,"ISO/IEC17025","Milligram/kilogram",null,50,null,null,869.6,null,"No",null,null,null,null,"Whole weight","Numerical Value"]
[231181,null,"English","United Kingdom","UKJ42","United Kingdom","UKJ42",null,null,null,null,"P0252010A",null,"Spinach",null,null,"Unprocessed",null,null,null,null,null,null,null,null,null,null,2017,"2017-05-30","2017-05-30",null,null,"Objective Sampling","Official (National) programme","According to Dir. 2002/63/EC",null,null,null,"E100A","Primary production",null,"Accredited","United Kingdom",null,null,"2017.12",2017,null,null,"RF-00000085-CHE","Nitrate",null,"Individual",null,"F008A","Colorimetry, Spectroscopy (Spectrometry) and Photometry",null,"ISO/IEC17025","Milligram/kilogram",null,50,null,null,265,null,"No",null,null,null,null,"Whole weight","Numerical Value"]
[231182,null,"English","United Kingdom","UKJ24","United Kingdom","UKJ24",null,null,null,null,"P0251020A",null,"Lettuce",null,null,"Unprocessed",null,null,null,null,null,null,null,null,null,null,2017,"2017-05-30","2017-05-30",null,null,"Objective Sampling","Official (National) programme","According to Dir. 2002/63/EC",null,null,null,"E100A","Primary production",null,"Accredited","United Kingdom",null,null,"2017.13",2017,null,null,"RF-00000085-CHE","Nitrate",null,"Individual",null,"F008A","Colorimetry, Spectroscopy (Spectrometry) and Photometry",null,"ISO/IEC17025","Milligram/kilogram",null,50,null,null,452.3,null,"No",null,null,null,null,"Whole weight","Numerical Value"]
[231179,null,"English","United Kingdom","UKJ42","United Kingdom","UKJ42",null,null,null,null,"P0251060A",null,"Rocket",null,null,"Unprocessed",null,null,null,null,null,null,null,null,null,null,2017,"2017-05-30","2017-05-30",null,null,"Objective Sampling","Official (National) programme","According to Dir. 2002/63/EC",null,null,null,"E100A","Primary production",null,"Accredited","United Kingdom",null,null,"2017.14",2017,null,null,"RF-00000085-CHE","Nitrate",null,"Individual",null,"F008A","Colorimetry, Spectroscopy (Spectrometry) and Photometry",null,"ISO/IEC17025","Milligram/kilogram",null,50,null,null,3291.5,null,"No",null,null,null,null,"Whole weight","Numerical Value"]
[231900,null,"English","United Kingdom","UKL14","United Kingdom","UKL14",null,null,null,null,"P0251020A",null,"Lettuce",null,null,"Unprocessed",null,null,null,null,null,null,null,null,null,null,2017,"2017-06-28","2017-06-28",null,null,"Objective Sampling","Official (National) programme","According to Dir. 2002/63/EC",null,null,null,"E100A","Primary production",null,"Accredited","United Kingdom",null,null,"2017.15",2017,null,null,"RF-00000085-CHE","Nitrate",null,"Individual",null,"F008A","Colorimetry, Spectroscopy (Spectrometry) and Photometry",null,"ISO/IEC17025","Milligram/kilogram",null,50,null,null,1491.3,null,"No",null,null,null,null,"Whole weight","Numerical Value"]
[231901,null,"English","United Kingdom","UKL14","United Kingdom","UKL14",null,null,null,null,"P0252010A",null,"Spinach",null,null,"Unprocessed",null,null,null,null,null,null,null,null,null,null,2017,"2017-06-28","2017-06-28",null,null,"Objective Sampling","Official (National) programme","According to Dir. 2002/63/EC",null,null,null,"E100A","Primary production",null,"Accredited","United Kingdom",null,null,"2017.16",2017,null,null,"RF-00000085-CHE","Nitrate",null,"Individual",null,"F008A","Colorimetry, Spectroscopy (Spectrometry) and Photometry",null,"ISO/IEC17025","Milligram/kilogram",null,50,null,null,1000.8,null,"No",null,null,null,null,"Whole weight","Numerical Value"]
[231334,null,"English","United Kingdom","UKG22","United Kingdom","UKG22",null,null,null,null,"P0252010A",null,"Spinach",null,null,"Unprocessed",null,null,null,null,null,null,null,null,null,null,2017,"2017-06-14","2017-06-14",null,null,"Objective Sampling","Official (National) programme","According to Dir. 2002/63/EC",null,null,null,"E100A","Primary production",null,"Accredited","United Kingdom",null,null,"2017.17",2017,null,null,"RF-00000085-CHE","Nitrate",null,"Individual",null,"F008A","Colorimetry, Spectroscopy (Spectrometry) and Photometry",null,"ISO/IEC17025","Milligram/kilogram",null,50,null,null,2307.1,null,"No",null,null,null,null,"Whole weight","Numerical Value"]
[231335,null,"English","United Kingdom","UKG22","United Kingdom","UKG22",null,null,null,null,"P0251060A",null,"Rocket",null,null,"Unprocessed",null,null,null,null,null,null,null,null,null,null,2017,"2017-06-14","2017-06-14",null,null,"Objective Sampling","Official (National) programme","According to Dir. 2002/63/EC",null,null,null,"E100A","Primary production",null,"Accredited","United Kingdom",null,null,"2017.18",2017,null,null,"RF-00000085-CHE","Nitrate",null,"Individual",null,"F008A","Colorimetry, Spectroscopy (Spectrometry) and Photometry",null,"ISO/IEC17025","Milligram/kilogram",null,50,null,null,5831.3,null,"No",null,null,null,null,"Whole weight","Numerical Value"]
[231336,null,"English","United Kingdom","UKG22","United Kingdom","UKG22",null,null,null,null,"P0251020A",null,"Lettuce",null,null,"Unprocessed",null,null,null,null,null,null,null,null,null,null,2017,"2017-06-14","2017-06-14",null,null,"Objective Sampling","Official (National) programme","According to Dir. 2002/63/EC",null,null,null,"E100A","Primary production",null,"Accredited","United Kingdom",null,null,"2017.19",2017,null,null,"RF-00000085-CHE","Nitrate",null,"Individual",null,"F008A","Colorimetry, Spectroscopy (Spectrometry) and Photometry",null,"ISO/IEC17025","Milligram/kilogram",null,50,null,null,602.70000000000005,null,"No",null,null,null,null,"Whole weight","Numerical Value"]
[231337,null,"English","United Kingdom","UKG22","United Kingdom","UKG22",null,null,null,null,"P0251020A",null,"Lettuce",null,null,"Unprocessed",null,null,null,null,null,null,null,null,null,null,2017,"2017-06-14","2017-06-14",null,null,"Objective Sampling","Official (National) programme","According to Dir. 2002/63/EC",null,null,null,"E100A","Primary production",null,"Accredited","United Kingdom",null,null,"2017.20",2017,null,null,"RF-00000085-CHE","Nitrate",null,"Individual",null,"F008A","Colorimetry, Spectroscopy (Spectrometry) and Photometry",null,"ISO/IEC17025","Milligram/kilogram",null,50,null,null,889.6,null,"No",null,null,null,null,"Whole weight","Numerical Value"]
[231860,null,"English","United Kingdom","UKM22","United Kingdom","UKM22",null,null,null,null,"P0251020A",null,"Lettuce",null,null,"Unprocessed",null,null,null,null,null,null,null,null,null,null,2017,"2017-06-27","2017-06-27",null,null,"Objective Sampling","Official (National) programme","According to Dir. 2002/63/EC",null,null,null,"E100A","Primary production",null,"Accredited","United Kingdom",null,null,"2017.21",2017,null,null,"RF-00000085-CHE","Nitrate",null,"Individual",null,"F008A","Colorimetry, Spectroscopy (Spectrometry) and Photometry",null,"ISO/IEC17025","Milligram/kilogram",null,50,null,null,593.4,null,"No",null,null,null,null,"Whole weight","Numerical Value"]
[231861,null,"English","United Kingdom","UKM22","United Kingdom","UKM22",null,null,null,null,"P0251020A",null,"Lettuce",null,null,"Unprocessed",null,null,null,null,null,null,null,null,null,null,2017,"2017-06-27","2017-06-27",null,null,"Objective Sampling","Official (National) programme","According to Dir. 2002/63/EC",null,null,null,"E100A","Primary production",null,"Accredited","United Kingdom",null,null,"2017.22",2017,null,null,"RF-00000085-CHE","Nitrate",null,"Individual",null,"F008A","Colorimetry, Spectroscopy (Spectrometry) and Photometry",null,"ISO/IEC17025","Milligram/kilogram",null,50,null,null,534.9,null,"No",null,null,null,null,"Whole weight","Numerical Value"]
[231862,null,"English","United Kingdom","UKM22","United Kingdom","UKM22",null,null,null,null,"P0251020A",null,"Lettuce",null,null,"Unprocessed",null,null,null,null,null,null,null,null,null,null,2017,"2017-06-27","2017-06-27",null,null,"Objective Sampling","Official (National) programme","According to Dir. 2002/63/EC",null,null,null,"E100A","Primary production",null,"Accredited","United Kingdom",null,null,"2017.23",2017,null,null,"RF-00000085-CHE","Nitrate",null,"Individual",null,"F008A","Colorimetry, Spectroscopy (Spectrometry) and Photometry",null,"ISO/IEC17025","Milligram/kilogram",null,50,null,null,566.1,null,"No",null,null,null,null,"Whole weight","Numerical Value"]
[231863,null,"English","United Kingdom","UKM22","United Kingdom","UKM22",null,null,null,null,"P0251020A",null,"Lettuce",null,null,"Unprocessed",null,null,null,null,null,null,null,null,null,null,2017,"2017-06-27","2017-06-27",null,null,"Objective Sampling","Official (National) programme","According to Dir. 2002/63/EC",null,null,null,"E100A","Primary production",null,"Accredited","United Kingdom",null,null,"2017.24",2017,null,null,"RF-00000085-CHE","Nitrate",null,"Individual",null,"F008A","Colorimetry, Spectroscopy (Spectrometry) and Photometry",null,"ISO/IEC17025","Milligram/kilogram",null,50,null,null,763.3,null,"No",null,null,null,null,"Whole weight","Numerical Value"]
[231864,null,"English","United Kingdom","UKM22","United Kingdom","UKM22",null,null,null,null,"P0251020A",null,"Lettuce",null,null,"Unprocessed",null,null,null,null,null,null,null,null,null,null,2017,"2017-06-27","2017-06-27",null,null,"Objective Sampling","Official (National) programme","According to Dir. 2002/63/EC",null,null,null,"E100A","Primary production",null,"Accredited","United Kingdom",null,null,"2017.25",2017,null,null,"RF-00000085-CHE","Nitrate",null,"Individual",null,"F008A","Colorimetry, Spectroscopy (Spectrometry) and Photometry",null,"ISO/IEC17025","Milligram/kilogram",null,50,null,null,321.10000000000002,null,"No",null,null,null,null,"Whole weight","Numerical Value"]
[231865,null,"English","United Kingdom","UKM22","United Kingdom","UKM22",null,null,null,null,"P0251020A",null,"Lettuce",null,null,"Unprocessed",null,null,null,null,null,null,null,null,null,null,2017,"2017-06-27","2017-06-27",null,null,"Objective Sampling","Official (National) programme","According to Dir. 2002/63/EC",null,null,null,"E100A","Primary production",null,"Accredited","United Kingdom",null,null,"2017.26",2017,null,null,"RF-00000085-CHE","Nitrate",null,"Individual",null,"F008A","Colorimetry, Spectroscopy (Spectrometry) and Photometry",null,"ISO/IEC17025","Milligram/kilogram",null,50,null,null,771,null,"No",null,null,null,null,"Whole weight","Numerical Value"]
[231814,null,"English","United Kingdom","UKK4","United Kingdom","UKK4",null,null,null,null,"P0252010A",null,"Spinach",null,null,"Unprocessed",null,null,null,null,null,null,null,null,null,null,2017,"2017-06-26","2017-06-26",null,null,"Objective Sampling","Official (National) programme","According to Dir. 2002/63/EC",null,null,null,"E100A","Primary production",null,"Accredited","United Kingdom",null,null,"2017.27",2017,null,null,"RF-00000085-CHE","Nitrate",null,"Individual",null,"F008A","Colorimetry, Spectroscopy (Spectrometry) and Photometry",null,"ISO/IEC17025","Milligram/kilogram",null,50,null,null,1930.6,null,"No",null,null,null,null,"Whole weight","Numerical Value"]
[231815,null,"English","United Kingdom","UKK4","United Kingdom","UKK4",null,null,null,null,"P0251070A",null,"Other (mizuna)",null,null,"Unprocessed",null,null,null,null,null,null,null,null,null,null,2017,"2017-06-26","2017-06-26",null,null,"Objective Sampling","Official (National) programme","According to Dir. 2002/63/EC",null,null,null,"E100A","Primary production",null,"Accredited","United Kingdom",null,null,"2017.28",2017,null,null,"RF-00000085-CHE","Nitrate",null,"Individual",null,"F008A","Colorimetry, Spectroscopy (Spectrometry) and Photometry",null,"ISO/IEC17025","Milligram/kilogram",null,50,null,null,2352.5,null,"No",null,null,null,null,"Whole weight","Numerical Value"]
[231816,null,"English","United Kingdom","UKK4","United Kingdom","UKK4",null,null,null,null,"P0251020A",null,"Lettuce",null,null,"Unprocessed",null,null,null,null,null,null,null,null,null,null,2017,"2017-06-26","2017-06-26",null,null,"Objective Sampling","Official (National) programme","According to Dir. 2002/63/EC",null,null,null,"E100A","Primary production",null,"Accredited","United Kingdom",null,null,"2017.29",2017,null,null,"RF-00000085-CHE","Nitrate",null,"Individual",null,"F008A","Colorimetry, Spectroscopy (Spectrometry) and Photometry",null,"ISO/IEC17025","Milligram/kilogram",null,50,null,null,428.2,null,"No",null,null,null,null,"Whole weight","Numerical Value"]
[231817,null,"English","United Kingdom","UKK4","United Kingdom","UKK4",null,null,null,null,"P0251020A",null,"Lettuce",null,null,"Unprocessed",null,null,null,null,null,null,null,null,null,null,2017,"2017-06-26","2017-06-26",null,null,"Objective Sampling","Official (National) programme","According to Dir. 2002/63/EC",null,null,null,"E100A","Primary production",null,"Accredited","United Kingdom",null,null,"2017.30",2017,null,null,"RF-00000085-CHE","Nitrate",null,"Individual",null,"F008A","Colorimetry, Spectroscopy (Spectrometry) and Photometry",null,"ISO/IEC17025","Milligram/kilogram",null,50,null,null,469.3,null,"No",null,null,null,null,"Whole weight","Numerical Value"]
[231338,null,"English","United Kingdom","UKJ42","United Kingdom","UKJ42",null,null,null,null,"P0252010A",null,"Spinach",null,null,"Unprocessed",null,null,null,null,null,null,null,null,null,null,2017,"2017-06-13","2017-06-13",null,null,"Objective Sampling","Official (National) programme","According to Dir. 2002/63/EC",null,null,null,"E100A","Primary production",null,"Accredited","United Kingdom",null,null,"2017.31",2017,null,null,"RF-00000085-CHE","Nitrate",null,"Individual",null,"F008A","Colorimetry, Spectroscopy (Spectrometry) and Photometry",null,"ISO/IEC17025","Milligram/kilogram",null,50,null,null,2862.3,null,"No",null,null,null,null,"Whole weight","Numerical Value"]
[231339,null,"English","United Kingdom","UKJ42","United Kingdom","UKJ42",null,null,null,null,"P0251060A",null,"Rocket",null,null,"Unprocessed",null,null,null,null,null,null,null,null,null,null,2017,"2017-06-13","2017-06-13",null,null,"Objective Sampling","Official (National) programme","According to Dir. 2002/63/EC",null,null,null,"E100A","Primary production",null,"Accredited","United Kingdom",null,null,"2017.32",2017,null,null,"RF-00000085-CHE","Nitrate",null,"Individual",null,"F008A","Colorimetry, Spectroscopy (Spectrometry) and Photometry",null,"ISO/IEC17025","Milligram/kilogram",null,50,null,null,3607.7,null,"No",null,null,null,null,"Whole weight","Numerical Value"]
[231340,null,"English","United Kingdom","UKJ24","United Kingdom","UKJ24",null,null,null,null,"P0251020A",null,"Lettuce",null,null,"Unprocessed",null,null,null,null,null,null,null,null,null,null,2017,"2017-06-13","2017-06-13",null,null,"Objective Sampling","Official (National) programme","According to Dir. 2002/63/EC",null,null,null,"E100A","Primary production",null,"Accredited","United Kingdom",null,null,"2017.33",2017,null,null,"RF-00000085-CHE","Nitrate",null,"Individual",null,"F008A","Colorimetry, Spectroscopy (Spectrometry) and Photometry",null,"ISO/IEC17025","Milligram/kilogram",null,50,null,null,523.70000000000005,null,"No",null,null,null,null,"Whole weight","Numerical Value"]
[231697,null,"English","United Kingdom","UKJ42","United Kingdom","UKJ42",null,null,null,null,"P0251060A",null,"Rocket",null,null,"Unprocessed",null,null,null,null,null,null,null,null,null,null,2017,"2017-06-20","2017-06-20",null,null,"Objective Sampling","Official (National) programme","According to Dir. 2002/63/EC",null,null,null,"E100A","Primary production",null,"Accredited","United Kingdom",null,null,"2017.34",2017,null,null,"RF-00000085-CHE","Nitrate",null,"Individual",null,"F008A","Colorimetry, Spectroscopy (Spectrometry) and Photometry",null,"ISO/IEC17025","Milligram/kilogram",null,50,null,null,2862.8,null,"No",null,null,null,null,"Whole weight","Numerical Value"]
[231698,null,"English","United Kingdom","UKJ42","United Kingdom","UKJ42",null,null,null,null,"P0252010A",null,"Spinach",null,null,"Unprocessed",null,null,null,null,null,null,null,null,null,null,2017,"2017-06-20","2017-06-20",null,null,"Objective Sampling","Official (National) programme","According to Dir. 2002/63/EC",null,null,null,"E100A","Primary production",null,"Accredited","United Kingdom",null,null,"2017.35",2017,null,null,"RF-00000085-CHE","Nitrate",null,"Individual",null,"F008A","Colorimetry, Spectroscopy (Spectrometry) and Photometry",null,"ISO/IEC17025","Milligram/kilogram",null,50,null,null,600.6,null,"No",null,null,null,null,"Whole weight","Numerical Value"]
[232432,null,"English","United Kingdom","UKH12","United Kingdom","UKH12",null,null,null,null,"P0251020A",null,"Lettuce",null,null,"Unprocessed",null,null,null,null,null,null,null,null,null,null,2017,"2017-07-19","2017-07-19",null,null,"Objective Sampling","Official (National) programme","According to Dir. 2002/63/EC",null,null,null,"E100A","Primary production",null,"Accredited","United Kingdom",null,null,"2017.36",2017,null,null,"RF-00000085-CHE","Nitrate",null,"Individual",null,"F008A","Colorimetry, Spectroscopy (Spectrometry) and Photometry",null,"ISO/IEC17025","Milligram/kilogram",null,50,null,null,2300.5,null,"No",null,null,null,null,"Whole weight","Numerical Value"]
[232433,null,"English","United Kingdom","UKH3","United Kingdom","UKH3",null,null,null,null,"P0251020A",null,"Lettuce",null,null,"Unprocessed",null,null,null,null,null,null,null,null,null,null,2017,"2017-07-19","2017-07-19",null,null,"Objective Sampling","Official (National) programme","According to Dir. 2002/63/EC",null,null,null,"E100A","Primary production",null,"Accredited","United Kingdom",null,null,"2017.37",2017,null,null,"RF-00000085-CHE","Nitrate",null,"Individual",null,"F008A","Colorimetry, Spectroscopy (Spectrometry) and Photometry",null,"ISO/IEC17025","Milligram/kilogram",null,50,null,null,777.2,null,"No",null,null,null,null,"Whole weight","Numerical Value"]
[232434,null,"English","United Kingdom","UKH3","United Kingdom","UKH3",null,null,null,null,"P0251060A",null,"Rocket",null,null,"Unprocessed",null,null,null,null,null,null,null,null,null,null,2017,"2017-07-19","2017-07-19",null,null,"Objective Sampling","Official (National) programme","According to Dir. 2002/63/EC",null,null,null,"E100A","Primary production",null,"Accredited","United Kingdom",null,null,"2017.38",2017,null,null,"RF-00000085-CHE","Nitrate",null,"Individual",null,"F008A","Colorimetry, Spectroscopy (Spectrometry) and Photometry",null,"ISO/IEC17025","Milligram/kilogram",null,50,null,null,4736.8999999999996,null,"No",null,null,null,null,"Whole weight","Numerical Value"]
[232435,null,"English","United Kingdom","UKH3","United Kingdom","UKH3",null,null,null,null,"P0251010A",null,"Other (Lambs Lettuce)",null,null,"Unprocessed",null,null,null,null,null,null,null,null,null,null,2017,"2017-07-19","2017-07-19",null,null,"Objective Sampling","Official (National) programme","According to Dir. 2002/63/EC",null,null,null,"E100A","Primary production",null,"Accredited","United Kingdom",null,null,"2017.39",2017,null,null,"RF-00000085-CHE","Nitrate",null,"Individual",null,"F008A","Colorimetry, Spectroscopy (Spectrometry) and Photometry",null,"ISO/IEC17025","Milligram/kilogram",null,50,null,null,4727.7,null,"No",null,null,null,null,"Whole weight","Numerical Value"]
[232003,null,"English","United Kingdom","UKL14","United Kingdom","UKL14",null,null,null,null,"P0251020A",null,"Lettuce",null,null,"Unprocessed",null,null,null,null,null,null,null,null,null,null,2017,"2017-07-02","2017-07-02",null,null,"Objective Sampling","Official (National) programme","According to Dir. 2002/63/EC",null,null,null,"E100A","Primary production",null,"Accredited","United Kingdom",null,null,"2017.40",2017,null,null,"RF-00000085-CHE","Nitrate",null,"Individual",null,"F008A","Colorimetry, Spectroscopy (Spectrometry) and Photometry",null,"ISO/IEC17025","Milligram/kilogram",null,50,null,null,956.7,null,"No",null,null,null,null,"Whole weight","Numerical Value"]
[232407,null,"English","United Kingdom","UKL14","United Kingdom","UKL14",null,null,null,null,"P0252010A",null,"Spinach",null,null,"Unprocessed",null,null,null,null,null,null,null,null,null,null,2017,"2017-07-19","2017-07-19",null,null,"Objective Sampling","Official (National) programme","According to Dir. 2002/63/EC",null,null,null,"E100A","Primary production",null,"Accredited","United Kingdom",null,null,"2017.41",2017,null,null,"RF-00000085-CHE","Nitrate",null,"Individual",null,"F008A","Colorimetry, Spectroscopy (Spectrometry) and Photometry",null,"ISO/IEC17025","Milligram/kilogram",null,50,null,null,220.6,null,"No",null,null,null,null,"Whole weight","Numerical Value"]
[232004,null,"English","United Kingdom","UKJ42","United Kingdom","UKJ42",null,null,null,null,"P0252010A",null,"Spinach",null,null,"Unprocessed",null,null,null,null,null,null,null,null,null,null,2017,"2017-07-04","2017-07-04",null,null,"Objective Sampling","Official (National) programme","According to Dir. 2002/63/EC",null,null,null,"E100A","Primary production",null,"Accredited","United Kingdom",null,null,"2017.42",2017,null,null,"RF-00000085-CHE","Nitrate",null,"Individual",null,"F008A","Colorimetry, Spectroscopy (Spectrometry) and Photometry",null,"ISO/IEC17025","Milligram/kilogram",null,50,null,null,1467.6,null,"No",null,null,null,null,"Whole weight","Numerical Value"]
[232005,null,"English","United Kingdom","UKJ42","United Kingdom","UKJ42",null,null,null,null,"P0251060A",null,"Rocket",null,null,"Unprocessed",null,null,null,null,null,null,null,null,null,null,2017,"2017-07-04","2017-07-04",null,null,"Objective Sampling","Official (National) programme","According to Dir. 2002/63/EC",null,null,null,"E100A","Primary production",null,"Accredited","United Kingdom",null,null,"2017.43",2017,null,null,"RF-00000085-CHE","Nitrate",null,"Individual",null,"F008A","Colorimetry, Spectroscopy (Spectrometry) and Photometry",null,"ISO/IEC17025","Milligram/kilogram",null,50,null,null,4870.6000000000004,null,"No",null,null,null,null,"Whole weight","Numerical Value"]
[232006,null,"English","United Kingdom","UKJ42","United Kingdom","UKJ42",null,null,null,null,"P0252010A",null,"Spinach",null,null,"Unprocessed",null,null,null,null,null,null,null,null,null,null,2017,"2017-07-04","2017-07-04",null,null,"Objective Sampling","Official (National) programme","According to Dir. 2002/63/EC",null,null,null,"E100A","Primary production",null,"Accredited","United Kingdom",null,null,"2017.44",2017,null,null,"RF-00000085-CHE","Nitrate",null,"Individual",null,"F008A","Colorimetry, Spectroscopy (Spectrometry) and Photometry",null,"ISO/IEC17025","Milligram/kilogram",null,50,null,null,1767.9,null,"No",null,null,null,null,"Whole weight","Numerical Value"]
[232007,null,"English","United Kingdom","UKJ24","United Kingdom","UKJ24",null,null,null,null,"P0251020A",null,"Lettuce",null,null,"Unprocessed",null,null,null,null,null,null,null,null,null,null,2017,"2017-07-04","2017-07-04",null,null,"Objective Sampling","Official (National) programme","According to Dir. 2002/63/EC",null,null,null,"E100A","Primary production",null,"Accredited","United Kingdom",null,null,"2017.45",2017,null,null,"RF-00000085-CHE","Nitrate",null,"Individual",null,"F008A","Colorimetry, Spectroscopy (Spectrometry) and Photometry",null,"ISO/IEC17025","Milligram/kilogram",null,50,null,null,1135.9000000000001,null,"No",null,null,null,null,"Whole weight","Numerical Value"]
[232008,null,"English","United Kingdom","UKJ42","United Kingdom","UKJ42",null,null,null,null,"P0251060A",null,"Rocket",null,null,"Unprocessed",null,null,null,null,null,null,null,null,null,null,2017,"2017-07-04","2017-07-04",null,null,"Objective Sampling","Official (National) programme","According to Dir. 2002/63/EC",null,null,null,"E100A","Primary production",null,"Accredited","United Kingdom",null,null,"2017.46",2017,null,null,"RF-00000085-CHE","Nitrate",null,"Individual",null,"F008A","Colorimetry, Spectroscopy (Spectrometry) and Photometry",null,"ISO/IEC17025","Milligram/kilogram",null,50,null,null,4655.3,null,"No",null,null,null,null,"Whole weight","Numerical Value"]
[232428,null,"English","United Kingdom","UKD43","United Kingdom","UKD43",null,null,null,null,"P0252010A",null,"Spinach",null,null,"Unprocessed",null,null,null,null,null,null,null,null,null,null,2017,"2017-07-20","2017-07-20",null,null,"Objective Sampling","Official (National) programme","According to Dir. 2002/63/EC",null,null,null,"E100A","Primary production",null,"Accredited","United Kingdom",null,null,"2017.47",2017,null,null,"RF-00000085-CHE","Nitrate",null,"Individual",null,"F008A","Colorimetry, Spectroscopy (Spectrometry) and Photometry",null,"ISO/IEC17025","Milligram/kilogram",null,50,null,null,776.8,null,"No",null,null,null,null,"Whole weight","Numerical Value"]
[232429,null,"English","United Kingdom","UKD43","United Kingdom","UKD43",null,null,null,null,"P0251060A",null,"Rocket",null,null,"Unprocessed",null,null,null,null,null,null,null,null,null,null,2017,"2017-07-20","2017-07-20",null,null,"Objective Sampling","Official (National) programme","According to Dir. 2002/63/EC",null,null,null,"E100A","Primary production",null,"Accredited","United Kingdom",null,null,"2017.48",2017,null,null,"RF-00000085-CHE","Nitrate",null,"Individual",null,"F008A","Colorimetry, Spectroscopy (Spectrometry) and Photometry",null,"ISO/IEC17025","Milligram/kilogram",null,50,null,null,4785.1000000000004,null,"No",null,null,null,null,"Whole weight","Numerical Value"]
[232430,null,"English","United Kingdom","UKD43","United Kingdom","UKD43",null,null,null,null,"P0251070A",null,"Other (mizuna)",null,null,"Unprocessed",null,null,null,null,null,null,null,null,null,null,2017,"2017-07-20","2017-07-20",null,null,"Objective Sampling","Official (National) programme","According to Dir. 2002/63/EC",null,null,null,"E100A","Primary production",null,"Accredited","United Kingdom",null,null,"2017.49",2017,null,null,"RF-00000085-CHE","Nitrate",null,"Individual",null,"F008A","Colorimetry, Spectroscopy (Spectrometry) and Photometry",null,"ISO/IEC17025","Milligram/kilogram",null,50,null,null,561.5,null,"No",null,null,null,null,"Whole weight","Numerical Value"]
[232431,null,"English","United Kingdom","UKD43","United Kingdom","UKD43",null,null,null,null,"P0252030A",null,"Other (red chard)",null,null,"Unprocessed",null,null,null,null,null,null,null,null,null,null,2017,"2017-07-20","2017-07-20",null,null,"Objective Sampling","Official (National) programme","According to Dir. 2002/63/EC",null,null,null,"E100A","Primary production",null,"Accredited","United Kingdom",null,null,"2017.50",2017,null,null,"RF-00000085-CHE","Nitrate",null,"Individual",null,"F008A","Colorimetry, Spectroscopy (Spectrometry) and Photometry",null,"ISO/IEC17025","Milligram/kilogram",null,50,null,null,1065.4000000000001,null,"No",null,null,null,null,"Whole weight","Numerical Value"]
[232469,null,"English","United Kingdom","UKE12","United Kingdom","UKE12",null,null,null,null,"P0251020A",null,"Lettuce",null,null,"Unprocessed",null,null,null,null,null,null,null,null,null,null,2017,"2017-07-26","2017-07-26",null,null,"Objective Sampling","Official (National) programme","According to Dir. 2002/63/EC",null,null,null,"E100A","Primary production",null,"Accredited","United Kingdom",null,null,"2017.51",2017,null,null,"RF-00000085-CHE","Nitrate",null,"Individual",null,"F008A","Colorimetry, Spectroscopy (Spectrometry) and Photometry",null,"ISO/IEC17025","Milligram/kilogram",null,50,null,null,2717.6,null,"No",null,null,null,null,"Whole weight","Numerical Value"]
[232470,null,"English","United Kingdom","UKE12","United Kingdom","UKE12",null,null,null,null,"P0251020A",null,"Lettuce",null,null,"Unprocessed",null,null,null,null,null,null,null,null,null,null,2017,"2017-07-26","2017-07-26",null,null,"Objective Sampling","Official (National) programme","According to Dir. 2002/63/EC",null,null,null,"E100A","Primary production",null,"Accredited","United Kingdom",null,null,"2017.52",2017,null,null,"RF-00000085-CHE","Nitrate",null,"Individual",null,"F008A","Colorimetry, Spectroscopy (Spectrometry) and Photometry",null,"ISO/IEC17025","Milligram/kilogram",null,50,null,null,2606,null,"No",null,null,null,null,"Whole weight","Numerical Value"]
[232471,null,"English","United Kingdom","UKE12","United Kingdom","UKE12",null,null,null,null,"P0251020A",null,"Lettuce",null,null,"Unprocessed",null,null,null,null,null,null,null,null,null,null,2017,"2017-07-26","2017-07-26",null,null,"Objective Sampling","Official (National) programme","According to Dir. 2002/63/EC",null,null,null,"E100A","Primary production",null,"Accredited","United Kingdom",null,null,"2017.53",2017,null,null,"RF-00000085-CHE","Nitrate",null,"Individual",null,"F008A","Colorimetry, Spectroscopy (Spectrometry) and Photometry",null,"ISO/IEC17025","Milligram/kilogram",null,50,null,null,2514.4,null,"No",null,null,null,null,"Whole weight","Numerical Value"]
[232472,null,"English","United Kingdom","UKE12","United Kingdom","UKE12",null,null,null,null,"P0251020A",null,"Lettuce",null,null,"Unprocessed",null,null,null,null,null,null,null,null,null,null,2017,"2017-07-26","2017-07-26",null,null,"Objective Sampling","Official (National) programme","According to Dir. 2002/63/EC",null,null,null,"E100A","Primary production",null,"Accredited","United Kingdom",null,null,"2017.54",2017,null,null,"RF-00000085-CHE","Nitrate",null,"Individual",null,"F008A","Colorimetry, Spectroscopy (Spectrometry) and Photometry",null,"ISO/IEC17025","Milligram/kilogram",null,50,null,null,2963.1,null,"No",null,null,null,null,"Whole weight","Numerical Value"]
[232947,null,"English","United Kingdom","UKN03","United Kingdom","UKN03",null,null,null,null,"P0251020A",null,"Lettuce",null,null,"Unprocessed",null,null,null,null,null,null,null,null,null,null,2017,"2017-08-02","2017-08-02",null,null,"Objective Sampling","Official (National) programme","According to Dir. 2002/63/EC",null,null,null,"E100A","Primary production",null,"Accredited","United Kingdom",null,null,"2017.55",2017,null,null,"RF-00000085-CHE","Nitrate",null,"Individual",null,"F008A","Colorimetry, Spectroscopy (Spectrometry) and Photometry",null,"ISO/IEC17025","Milligram/kilogram",null,50,null,null,3364.5,null,"No",null,null,null,null,"Whole weight","Numerical Value"]
[232948,null,"English","United Kingdom","UKN03","United Kingdom","UKN03",null,null,null,null,"P0251020A",null,"Lettuce",null,null,"Unprocessed",null,null,null,null,null,null,null,null,null,null,2017,"2017-08-02","2017-08-02",null,null,"Objective Sampling","Official (National) programme","According to Dir. 2002/63/EC",null,null,null,"E100A","Primary production",null,"Accredited","United Kingdom",null,null,"2017.56",2017,null,null,"RF-00000085-CHE","Nitrate",null,"Individual",null,"F008A","Colorimetry, Spectroscopy (Spectrometry) and Photometry",null,"ISO/IEC17025","Milligram/kilogram",null,50,null,null,3840.5,null,"No",null,null,null,null,"Whole weight","Numerical Value"]
[232950,null,"English","United Kingdom","UKN03","United Kingdom","UKN03",null,null,null,null,"P0251020A",null,"Lettuce",null,null,"Unprocessed",null,null,null,null,null,null,null,null,null,null,2017,"2017-08-02","2017-08-02",null,null,"Objective Sampling","Official (National) programme","According to Dir. 2002/63/EC",null,null,null,"E100A","Primary production",null,"Accredited","United Kingdom",null,null,"2017.57",2017,null,null,"RF-00000085-CHE","Nitrate",null,"Individual",null,"F008A","Colorimetry, Spectroscopy (Spectrometry) and Photometry",null,"ISO/IEC17025","Milligram/kilogram",null,50,null,null,898.4,null,"No",null,null,null,null,"Whole weight","Numerical Value"]
[232949,null,"English","United Kingdom","UKN03","United Kingdom","UKN03",null,null,null,null,"P0251020A",null,"Lettuce",null,null,"Unprocessed",null,null,null,null,null,null,null,null,null,null,2017,"2017-08-02","2017-08-02",null,null,"Objective Sampling","Official (National) programme","According to Dir. 2002/63/EC",null,null,null,"E100A","Primary production",null,"Accredited","United Kingdom",null,null,"2017.58",2017,null,null,"RF-00000085-CHE","Nitrate",null,"Individual",null,"F008A","Colorimetry, Spectroscopy (Spectrometry) and Photometry",null,"ISO/IEC17025","Milligram/kilogram",null,50,null,null,1566.8,null,"No",null,null,null,null,"Whole weight","Numerical Value"]
[233461,null,"English","United Kingdom","UKL14","United Kingdom","UKL14",null,null,null,null,"P0251060A",null,"Rocket",null,null,"Unprocessed",null,null,null,null,null,null,null,null,null,null,2017,"2017-08-14","2017-08-14",null,null,"Objective Sampling","Official (National) programme","According to Dir. 2002/63/EC",null,null,null,"E100A","Primary production",null,"Accredited","United Kingdom",null,null,"2017.59",2017,null,null,"RF-00000085-CHE","Nitrate",null,"Individual",null,"F008A","Colorimetry, Spectroscopy (Spectrometry) and Photometry",null,"ISO/IEC17025","Milligram/kilogram",null,50,null,null,2888.4,null,"No",null,null,null,null,"Whole weight","Numerical Value"]
[233261,null,"English","United Kingdom","UKG22","United Kingdom","UKG22",null,null,null,null,"P0252010A",null,"Spinach",null,null,"Unprocessed",null,null,null,null,null,null,null,null,null,null,2017,"2017-08-15","2017-08-15",null,null,"Objective Sampling","Official (National) programme","According to Dir. 2002/63/EC",null,null,null,"E100A","Primary production",null,"Accredited","United Kingdom",null,null,"2017.61",2017,null,null,"RF-00000085-CHE","Nitrate",null,"Individual",null,"F008A","Colorimetry, Spectroscopy (Spectrometry) and Photometry",null,"ISO/IEC17025","Milligram/kilogram",null,50,null,null,2590.5,null,"No",null,null,null,null,"Whole weight","Numerical Value"]
[233262,null,"English","United Kingdom","UKG22","United Kingdom","UKG22",null,null,null,null,"P0251020A",null,"Lettuce",null,null,"Unprocessed",null,null,null,null,null,null,null,null,null,null,2017,"2017-08-15","2017-08-15",null,null,"Objective Sampling","Official (National) programme","According to Dir. 2002/63/EC",null,null,null,"E100A","Primary production",null,"Accredited","United Kingdom",null,null,"2017.62",2017,null,null,"RF-00000085-CHE","Nitrate",null,"Individual",null,"F008A","Colorimetry, Spectroscopy (Spectrometry) and Photometry",null,"ISO/IEC17025","Milligram/kilogram",null,50,null,null,811.7,null,"No",null,null,null,null,"Whole weight","Numerical Value"]
[233263,null,"English","United Kingdom","UKG22","United Kingdom","UKG22",null,null,null,null,"P0251060A",null,"Rocket",null,null,"Unprocessed",null,null,null,null,null,null,null,null,null,null,2017,"2017-08-15","2017-08-15",null,null,"Objective Sampling","Official (National) programme","According to Dir. 2002/63/EC",null,null,null,"E100A","Primary production",null,"Accredited","United Kingdom",null,null,"2017.63",2017,null,null,"RF-00000085-CHE","Nitrate",null,"Individual",null,"F008A","Colorimetry, Spectroscopy (Spectrometry) and Photometry",null,"ISO/IEC17025","Milligram/kilogram",null,50,null,null,4188.8999999999996,null,"No",null,null,null,null,"Whole weight","Numerical Value"]
[233264,null,"English","United Kingdom","UKG22","United Kingdom","UKG22",null,null,null,null,"P0251020A",null,"Lettuce",null,null,"Unprocessed",null,null,null,null,null,null,null,null,null,null,2017,"2017-08-15","2017-08-15",null,null,"Objective Sampling","Official (National) programme","According to Dir. 2002/63/EC",null,null,null,"E100A","Primary production",null,"Accredited","United Kingdom",null,null,"2017.64",2017,null,null,"RF-00000085-CHE","Nitrate",null,"Individual",null,"F008A","Colorimetry, Spectroscopy (Spectrometry) and Photometry",null,"ISO/IEC17025","Milligram/kilogram",null,50,null,null,1389.3,null,"No",null,null,null,null,"Whole weight","Numerical Value"]
[233265,null,"English","United Kingdom","UKK4","United Kingdom","UKK4",null,null,null,null,"P0252030A",null,"Other (red chard)",null,null,"Unprocessed",null,null,null,null,null,null,null,null,null,null,2017,"2017-08-16","2017-08-16",null,null,"Objective Sampling","Official (National) programme","According to Dir. 2002/63/EC",null,null,null,"E100A","Primary production",null,"Accredited","United Kingdom",null,null,"2017.65",2017,null,null,"RF-00000085-CHE","Nitrate",null,"Individual",null,"F008A","Colorimetry, Spectroscopy (Spectrometry) and Photometry",null,"ISO/IEC17025","Milligram/kilogram",null,50,null,null,1776,null,"No",null,null,null,null,"Whole weight","Numerical Value"]
[233266,null,"English","United Kingdom","UKK4","United Kingdom","UKK4",null,null,null,null,"P0251070A",null,"Other (mustard)",null,null,"Unprocessed",null,null,null,null,null,null,null,null,null,null,2017,"2017-08-16","2017-08-16",null,null,"Objective Sampling","Official (National) programme","According to Dir. 2002/63/EC",null,null,null,"E100A","Primary production",null,"Accredited","United Kingdom",null,null,"2017.66",2017,null,null,"RF-00000085-CHE","Nitrate",null,"Individual",null,"F008A","Colorimetry, Spectroscopy (Spectrometry) and Photometry",null,"ISO/IEC17025","Milligram/kilogram",null,50,null,null,3701.8,null,"No",null,null,null,null,"Whole weight","Numerical Value"]
[233267,null,"English","United Kingdom","UKK4","United Kingdom","UKK4",null,null,null,null,"P0251020A",null,"Lettuce",null,null,"Unprocessed",null,null,null,null,null,null,null,null,null,null,2017,"2017-08-16","2017-08-16",null,null,"Objective Sampling","Official (National) programme","According to Dir. 2002/63/EC",null,null,null,"E100A","Primary production",null,"Accredited","United Kingdom",null,null,"2017.67",2017,null,null,"RF-00000085-CHE","Nitrate",null,"Individual",null,"F008A","Colorimetry, Spectroscopy (Spectrometry) and Photometry",null,"ISO/IEC17025","Milligram/kilogram",null,50,null,null,973.4,null,"No",null,null,null,null,"Whole weight","Numerical Value"]
[233268,null,"English","United Kingdom","UKK4","United Kingdom","UKK4",null,null,null,null,"P0251020A",null,"Lettuce",null,null,"Unprocessed",null,null,null,null,null,null,null,null,null,null,2017,"2017-08-16","2017-08-16",null,null,"Objective Sampling","Official (National) programme","According to Dir. 2002/63/EC",null,null,null,"E100A","Primary production",null,"Accredited","United Kingdom",null,null,"2017.68",2017,null,null,"RF-00000085-CHE","Nitrate",null,"Individual",null,"F008A","Colorimetry, Spectroscopy (Spectrometry) and Photometry",null,"ISO/IEC17025","Milligram/kilogram",null,50,null,null,722.5,null,"No",null,null,null,null,"Whole weight","Numerical Value"]
[233162,null,"English","United Kingdom","UKJ42","United Kingdom","UKJ42",null,null,null,null,"P0251060A",null,"Rocket",null,null,"Unprocessed",null,null,null,null,null,null,null,null,null,null,2017,"2017-08-08","2017-08-08",null,null,"Objective Sampling","Official (National) programme","According to Dir. 2002/63/EC",null,null,null,"E100A","Primary production",null,"Accredited","United Kingdom",null,null,"2017.69",2017,null,null,"RF-00000085-CHE","Nitrate",null,"Individual",null,"F008A","Colorimetry, Spectroscopy (Spectrometry) and Photometry",null,"ISO/IEC17025","Milligram/kilogram",null,50,null,null,5489,null,"No",null,null,null,null,"Whole weight","Numerical Value"]
[233163,null,"English","United Kingdom","UKJ42","United Kingdom","UKJ42",null,null,null,null,"P0252010A",null,"Spinach",null,null,"Unprocessed",null,null,null,null,null,null,null,null,null,null,2017,"2017-08-08","2017-08-08",null,null,"Objective Sampling","Official (National) programme","According to Dir. 2002/63/EC",null,null,null,"E100A","Primary production",null,"Accredited","United Kingdom",null,null,"2017.70",2017,null,null,"RF-00000085-CHE","Nitrate",null,"Individual",null,"F008A","Colorimetry, Spectroscopy (Spectrometry) and Photometry",null,"ISO/IEC17025","Milligram/kilogram",null,50,null,null,1369.6,null,"No",null,null,null,null,"Whole weight","Numerical Value"]
[233763,null,"English","United Kingdom","UKJ42","United Kingdom","UKJ42",null,null,null,null,"P0251060A",null,"Rocket",null,null,"Unprocessed",null,null,null,null,null,null,null,null,null,null,2017,"2017-08-22","2017-08-22",null,null,"Objective Sampling","Official (National) programme","According to Dir. 2002/63/EC",null,null,null,{"$f":"IF(AN130=\"Wholesale\",\"E510A\",\"E100A\")","v":"E100A"},"Primary production",null,"Accredited","United Kingdom",null,null,"2017.71",2017,null,null,"RF-00000085-CHE","Nitrate",null,"Individual",null,"F008A","Colorimetry, Spectroscopy (Spectrometry) and Photometry",null,"ISO/IEC17025","Milligram/kilogram",null,50,null,null,5247.6,null,"No",null,null,null,null,"Whole weight","Numerical Value"]
[233764,null,"English","United Kingdom","UKJ24","United Kingdom","UKJ24",null,null,null,null,"P0251020A",null,"Lettuce",null,null,"Unprocessed",null,null,null,null,null,null,null,null,null,null,2017,"2017-08-22","2017-08-22",null,null,"Objective Sampling","Official (National) programme","According to Dir. 2002/63/EC",null,null,null,"E100A","Primary production",null,"Accredited","United Kingdom",null,null,"2017.72",2017,null,null,"RF-00000085-CHE","Nitrate",null,"Individual",null,"F008A","Colorimetry, Spectroscopy (Spectrometry) and Photometry",null,"ISO/IEC17025","Milligram/kilogram",null,50,null,null,206.1,null,"No",null,null,null,null,"Whole weight","Numerical Value"]
[234700,null,"English","United Kingdom","UKN03","United Kingdom","UKN03",null,null,null,null,"P0251020A",null,"Lettuce",null,null,"Unprocessed",null,null,null,null,null,null,null,null,null,null,2017,"2017-09-26","2017-09-26",null,null,"Objective Sampling","Official (National) programme","According to Dir. 2002/63/EC",null,null,null,"E100A","Primary production",null,"Accredited","United Kingdom",null,null,"2017.73",2017,null,null,"RF-00000085-CHE","Nitrate",null,"Individual",null,"F008A","Colorimetry, Spectroscopy (Spectrometry) and Photometry",null,"ISO/IEC17025","Milligram/kilogram",null,50,null,null,2598.1999999999998,null,"No",null,null,null,null,"Whole weight","Numerical Value"]
[234701,null,"English","United Kingdom","UKN03","United Kingdom","UKN03",null,null,null,null,"P0251020A",null,"Lettuce",null,null,"Unprocessed",null,null,null,null,null,null,null,null,null,null,2017,"2017-09-26","2017-09-26",null,null,"Objective Sampling","Official (National) programme","According to Dir. 2002/63/EC",null,null,null,"E100A","Primary production",null,"Accredited","United Kingdom",null,null,"2017.74",2017,null,null,"RF-00000085-CHE","Nitrate",null,"Individual",null,"F008A","Colorimetry, Spectroscopy (Spectrometry) and Photometry",null,"ISO/IEC17025","Milligram/kilogram",null,50,null,null,2291.3000000000002,null,"No",null,null,null,null,"Whole weight","Numerical Value"]
[234702,null,"English","United Kingdom","UKN03","United Kingdom","UKN03",null,null,null,null,"P0251020A",null,"Lettuce",null,null,"Unprocessed",null,null,null,null,null,null,null,null,null,null,2017,"2017-09-26","2017-09-26",null,null,"Objective Sampling","Official (National) programme","According to Dir. 2002/63/EC",null,null,null,"E100A","Primary production",null,"Accredited","United Kingdom",null,null,"2017.75",2017,null,null,"RF-00000085-CHE","Nitrate",null,"Individual",null,"F008A","Colorimetry, Spectroscopy (Spectrometry) and Photometry",null,"ISO/IEC17025","Milligram/kilogram",null,50,null,null,4014.9,null,"No",null,null,null,null,"Whole weight","Numerical Value"]
[234703,null,"English","United Kingdom","UKN03","United Kingdom","UKN03",null,null,null,null,"P0251020A",null,"Lettuce",null,null,"Unprocessed",null,null,null,null,null,null,null,null,null,null,2017,"2017-09-26","2017-09-26",null,null,"Objective Sampling","Official (National) programme","According to Dir. 2002/63/EC",null,null,null,"E100A","Primary production",null,"Accredited","United Kingdom",null,null,"2017.76",2017,null,null,"RF-00000085-CHE","Nitrate",null,"Individual",null,"F008A","Colorimetry, Spectroscopy (Spectrometry) and Photometry",null,"ISO/IEC17025","Milligram/kilogram",null,50,null,null,3773.8,null,"No",null,null,null,null,"Whole weight","Numerical Value"]
[234323,null,"English","United Kingdom","UKD43","United Kingdom","UKD43",null,null,null,null,"P0251070A",null,"Other (Mizuna)",null,null,"Unprocessed",null,null,null,null,null,null,null,null,null,null,2017,"2017-09-06","2017-09-06",null,null,"Objective Sampling","Official (National) programme","According to Dir. 2002/63/EC",null,null,null,"E100A","Primary production",null,"Accredited","United Kingdom",null,null,"2017.77",2017,null,null,"RF-00000085-CHE","Nitrate",null,"Individual",null,"F008A","Colorimetry, Spectroscopy (Spectrometry) and Photometry",null,"ISO/IEC17025","Milligram/kilogram",null,50,null,null,1989.9,null,"No",null,null,null,null,"Whole weight","Numerical Value"]
[234324,null,"English","United Kingdom","UKD43","United Kingdom","UKD43",null,null,null,null,"P0252010A",null,"Spinach",null,null,"Unprocessed",null,null,null,null,null,null,null,null,null,null,2017,"2017-09-06","2017-09-06",null,null,"Objective Sampling","Official (National) programme","According to Dir. 2002/63/EC",null,null,null,"E100A","Primary production",null,"Accredited","United Kingdom",null,null,"2017.78",2017,null,null,"RF-00000085-CHE","Nitrate",null,"Individual",null,"F008A","Colorimetry, Spectroscopy (Spectrometry) and Photometry",null,"ISO/IEC17025","Milligram/kilogram",null,50,null,null,2454.4,null,"No",null,null,null,null,"Whole weight","Numerical Value"]
[234325,null,"English","United Kingdom","UKD43","United Kingdom","UKD43",null,null,null,null,"P0251020A",null,"Lettuce",null,null,"Unprocessed",null,null,null,null,null,null,null,null,null,null,2017,"2017-09-06","2017-09-06",null,null,"Objective Sampling","Official (National) programme","According to Dir. 2002/63/EC",null,null,null,"E100A","Primary production",null,"Accredited","United Kingdom",null,null,"2017.79",2017,null,null,"RF-00000085-CHE","Nitrate",null,"Individual",null,"F008A","Colorimetry, Spectroscopy (Spectrometry) and Photometry",null,"ISO/IEC17025","Milligram/kilogram",null,50,null,null,2709.8,null,"No",null,null,null,null,"Whole weight","Numerical Value"]
[234326,null,"English","United Kingdom","UKD43","United Kingdom","UKD43",null,null,null,null,"P0251020A",null,"Lettuce",null,null,"Unprocessed",null,null,null,null,null,null,null,null,null,null,2017,"2017-09-06","2017-09-06",null,null,"Objective Sampling","Official (National) programme","According to Dir. 2002/63/EC",null,null,null,"E100A","Primary production",null,"Accredited","United Kingdom",null,null,"2017.80",2017,null,null,"RF-00000085-CHE","Nitrate",null,"Individual",null,"F008A","Colorimetry, Spectroscopy (Spectrometry) and Photometry",null,"ISO/IEC17025","Milligram/kilogram",null,50,null,null,3479.5,null,"No",null,null,null,null,"Whole weight","Numerical Value"]
[234359,null,"English","United Kingdom","UKM22","United Kingdom","UKM22",null,null,null,null,"P0251020A",null,"Lettuce",null,null,"Unprocessed",null,null,null,null,null,null,null,null,null,null,2017,"2017-09-12","2017-09-12",null,null,"Objective Sampling","Official (National) programme","According to Dir. 2002/63/EC",null,null,null,"E100A","Primary production",null,"Accredited","United Kingdom",null,null,"2017.81",2017,null,null,"RF-00000085-CHE","Nitrate",null,"Individual",null,"F008A","Colorimetry, Spectroscopy (Spectrometry) and Photometry",null,"ISO/IEC17025","Milligram/kilogram",null,50,null,null,1214.0999999999999,null,"No",null,null,null,null,"Whole weight","Numerical Value"]
[234360,null,"English","United Kingdom","UKM22","United Kingdom","UKM22",null,null,null,null,"P0251020A",null,"Lettuce",null,null,"Unprocessed",null,null,null,null,null,null,null,null,null,null,2017,"2017-09-12","2017-09-12",null,null,"Objective Sampling","Official (National) programme","According to Dir. 2002/63/EC",null,null,null,"E100A","Primary production",null,"Accredited","United Kingdom",null,null,"2017.82",2017,null,null,"RF-00000085-CHE","Nitrate",null,"Individual",null,"F008A","Colorimetry, Spectroscopy (Spectrometry) and Photometry",null,"ISO/IEC17025","Milligram/kilogram",null,50,null,null,1161.9000000000001,null,"No",null,null,null,null,"Whole weight","Numerical Value"]
[234361,null,"English","United Kingdom","UKM22","United Kingdom","UKM22",null,null,null,null,"P0251020A",null,"Lettuce",null,null,"Unprocessed",null,null,null,null,null,null,null,null,null,null,2017,"2017-09-12","2017-09-12",null,null,"Objective Sampling","Official (National) programme","According to Dir. 2002/63/EC",null,null,null,"E100A","Primary production",null,"Accredited","United Kingdom",null,null,"2017.83",2017,null,null,"RF-00000085-CHE","Nitrate",null,"Individual",null,"F008A","Colorimetry, Spectroscopy (Spectrometry) and Photometry",null,"ISO/IEC17025","Milligram/kilogram",null,50,null,null,1964.3,null,"No",null,null,null,null,"Whole weight","Numerical Value"]
[234362,null,"English","United Kingdom","UKM22","United Kingdom","UKM22",null,null,null,null,"P0251020A",null,"Lettuce",null,null,"Unprocessed",null,null,null,null,null,null,null,null,null,null,2017,"2017-09-12","2017-09-12",null,null,"Objective Sampling","Official (National) programme","According to Dir. 2002/63/EC",null,null,null,"E100A","Primary production",null,"Accredited","United Kingdom",null,null,"2017.84",2017,null,null,"RF-00000085-CHE","Nitrate",null,"Individual",null,"F008A","Colorimetry, Spectroscopy (Spectrometry) and Photometry",null,"ISO/IEC17025","Milligram/kilogram",null,50,null,null,1797.8,null,"No",null,null,null,null,"Whole weight","Numerical Value"]
[234363,null,"English","United Kingdom","UKM22","United Kingdom","UKM22",null,null,null,null,"P0251020A",null,"Lettuce",null,null,"Unprocessed",null,null,null,null,null,null,null,null,null,null,2017,"2017-09-12","2017-09-12",null,null,"Objective Sampling","Official (National) programme","According to Dir. 2002/63/EC",null,null,null,"E100A","Primary production",null,"Accredited","United Kingdom",null,null,"2017.85",2017,null,null,"RF-00000085-CHE","Nitrate",null,"Individual",null,"F008A","Colorimetry, Spectroscopy (Spectrometry) and Photometry",null,"ISO/IEC17025","Milligram/kilogram",null,50,null,null,1453.3,null,"No",null,null,null,null,"Whole weight","Numerical Value"]
[234364,null,"English","United Kingdom","UKM22","United Kingdom","UKM22",null,null,null,null,"P0251020A",null,"Lettuce",null,null,"Unprocessed",null,null,null,null,null,null,null,null,null,null,2017,"2017-09-12","2017-09-12",null,null,"Objective Sampling","Official (National) programme","According to Dir. 2002/63/EC",null,null,null,"E100A","Primary production",null,"Accredited","United Kingdom",null,null,"2017.86",2017,null,null,"RF-00000085-CHE","Nitrate",null,"Individual",null,"F008A","Colorimetry, Spectroscopy (Spectrometry) and Photometry",null,"ISO/IEC17025","Milligram/kilogram",null,50,null,null,730.4,null,"No",null,null,null,null,"Whole weight","Numerical Value"]
[234333,null,"English","United Kingdom","UKJ42","United Kingdom","UKJ42",null,null,null,null,"P0252010A",null,"Spinach",null,null,"Unprocessed",null,null,null,null,null,null,null,null,null,null,2017,"2017-09-06","2017-09-06",null,null,"Objective Sampling","Official (National) programme","According to Dir. 2002/63/EC",null,null,null,"E100A","Primary production",null,"Accredited","United Kingdom",null,null,"2017.87",2017,null,null,"RF-00000085-CHE","Nitrate",null,"Individual",null,"F008A","Colorimetry, Spectroscopy (Spectrometry) and Photometry",null,"ISO/IEC17025","Milligram/kilogram",null,50,null,null,1229.0999999999999,null,"No",null,null,null,null,"Whole weight","Numerical Value"]
[234334,null,"English","United Kingdom","UKJ42","United Kingdom","UKJ42",null,null,null,null,"P0251020A",null,"Lettuce",null,null,"Unprocessed",null,null,null,null,null,null,null,null,null,null,2017,"2017-09-06","2017-09-06",null,null,"Objective Sampling","Official (National) programme","According to Dir. 2002/63/EC",null,null,null,"E100A","Primary production",null,"Accredited","United Kingdom",null,null,"2017.88",2017,null,null,"RF-00000085-CHE","Nitrate",null,"Individual",null,"F008A","Colorimetry, Spectroscopy (Spectrometry) and Photometry",null,"ISO/IEC17025","Milligram/kilogram",null,50,null,null,2513.1999999999998,null,"No",null,null,null,null,"Whole weight","Numerical Value"]
[234335,null,"English","United Kingdom","UKJ42","United Kingdom","UKJ42",null,null,null,null,"P0251990A",null,"Other (Raddichio)",null,null,"Unprocessed",null,null,null,null,null,null,null,null,null,null,2017,"2017-09-06","2017-09-06",null,null,"Objective Sampling","Official (National) programme","According to Dir. 2002/63/EC",null,null,null,"E100A","Primary production",null,"Accredited","United Kingdom",null,null,"2017.89",2017,null,null,"RF-00000085-CHE","Nitrate",null,"Individual",null,"F008A","Colorimetry, Spectroscopy (Spectrometry) and Photometry",null,"ISO/IEC17025","Milligram/kilogram",null,50,null,null,979.5,null,"No",null,null,null,null,"Whole weight","Numerical Value"]
[234560,null,"English","United Kingdom","UKJ42","United Kingdom","UKJ42",null,null,null,null,"P0251060A",null,"Rocket",null,null,"Unprocessed",null,null,null,null,null,null,null,null,null,null,2017,"2017-09-19","2017-09-19",null,null,"Objective Sampling","Official (National) programme","According to Dir. 2002/63/EC",null,null,null,"E100A","Primary production",null,"Accredited","United Kingdom",null,null,"2017.90",2017,null,null,"RF-00000085-CHE","Nitrate",null,"Individual",null,"F008A","Colorimetry, Spectroscopy (Spectrometry) and Photometry",null,"ISO/IEC17025","Milligram/kilogram",null,50,null,null,6761.1,null,"No",null,null,null,null,"Whole weight","Numerical Value"]
[234561,null,"English","United Kingdom","UKJ24","United Kingdom","UKJ24",null,null,null,null,"P0251020A",null,"Lettuce",null,null,"Unprocessed",null,null,null,null,null,null,null,null,null,null,2017,"2017-09-19","2017-09-19",null,null,"Objective Sampling","Official (National) programme","According to Dir. 2002/63/EC",null,null,null,"E100A","Primary production",null,"Accredited","United Kingdom",null,null,"2017.91",2017,null,null,"RF-00000085-CHE","Nitrate",null,"Individual",null,"F008A","Colorimetry, Spectroscopy (Spectrometry) and Photometry",null,"ISO/IEC17025","Milligram/kilogram",null,50,null,null,855.5,null,"No",null,null,null,null,"Whole weight","Numerical Value"]
[236317,null,"English","United Kingdom","UKD43","United Kingdom","UKD43",null,null,null,null,"P0251070A",null,"Other (mizuna)",null,null,"Unprocessed",null,null,null,null,null,null,null,null,null,null,2017,"2017-10-18","2017-10-18",null,null,"Objective Sampling","Official (National) programme","According to Dir. 2002/63/EC",null,null,null,"E100A","Primary production",null,"Accredited","United Kingdom",null,null,"2017.92",2017,null,null,"RF-00000085-CHE","Nitrate",null,"Individual",null,"F008A","Colorimetry, Spectroscopy (Spectrometry) and Photometry",null,"ISO/IEC17025","Milligram/kilogram",null,50,null,null,2474.6,null,"No",null,null,null,null,"Whole weight","Numerical Value"]
[236318,null,"English","United Kingdom","UKD43","United Kingdom","UKD43",null,null,null,null,"P0252010A",null,"Spinach",null,null,"Unprocessed",null,null,null,null,null,null,null,null,null,null,2017,"2017-10-18","2017-10-18",null,null,"Objective Sampling","Official (National) programme","According to Dir. 2002/63/EC",null,null,null,"E100A","Primary production",null,"Accredited","United Kingdom",null,null,"2017.93",2017,null,null,"RF-00000085-CHE","Nitrate",null,"Individual",null,"F008A","Colorimetry, Spectroscopy (Spectrometry) and Photometry",null,"ISO/IEC17025","Milligram/kilogram",null,50,null,null,3047.2,null,"No",null,null,null,null,"Whole weight","Numerical Value"]
[236319,null,"English","United Kingdom","UKD43","United Kingdom","UKD43",null,null,null,null,"P0251060A",null,"Rocket",null,null,"Unprocessed",null,null,null,null,null,null,null,null,null,null,2017,"2017-10-18","2017-10-18",null,null,"Objective Sampling","Official (National) programme","According to Dir. 2002/63/EC",null,null,null,"E100A","Primary production",null,"Accredited","United Kingdom",null,null,"2017.94",2017,null,null,"RF-00000085-CHE","Nitrate",null,"Individual",null,"F008A","Colorimetry, Spectroscopy (Spectrometry) and Photometry",null,"ISO/IEC17025","Milligram/kilogram",null,50,null,null,5127.3999999999996,null,"No",null,null,null,null,"Whole weight","Numerical Value"]
[236320,null,"English","United Kingdom","UKD43","United Kingdom","UKD43",null,null,null,null,"P0252030A",null,"Other (red chard)",null,null,"Unprocessed",null,null,null,null,null,null,null,null,null,null,2017,"2017-10-18","2017-10-18",null,null,"Objective Sampling","Official (National) programme","According to Dir. 2002/63/EC",null,null,null,"E100A","Primary production",null,"Accredited","United Kingdom",null,null,"2017.95",2017,null,null,"RF-00000085-CHE","Nitrate",null,"Individual",null,"F008A","Colorimetry, Spectroscopy (Spectrometry) and Photometry",null,"ISO/IEC17025","Milligram/kilogram",null,50,null,null,3301.1,null,"No",null,null,null,null,"Whole weight","Numerical Value"]
[236510,null,"English","United Kingdom","UKE12","United Kingdom","UKE12",null,null,null,null,"P0251020A",null,"Lettuce",null,null,"Unprocessed",null,null,null,null,null,null,null,null,null,null,2017,"2017-10-23","2017-10-23",null,null,"Objective Sampling","Official (National) programme","According to Dir. 2002/63/EC",null,null,null,"E100A","Primary production",null,"Accredited","United Kingdom",null,null,"2017.96",2017,null,null,"RF-00000085-CHE","Nitrate",null,"Individual",null,"F008A","Colorimetry, Spectroscopy (Spectrometry) and Photometry",null,"ISO/IEC17025","Milligram/kilogram",null,50,null,null,4802.7,null,"No",null,null,null,null,"Whole weight","Numerical Value"]
[236511,null,"English","United Kingdom","UKE12","United Kingdom","UKE12",null,null,null,null,"P0251020A",null,"Lettuce",null,null,"Unprocessed",null,null,null,null,null,null,null,null,null,null,2017,"2017-10-23","2017-10-23",null,null,"Objective Sampling","Official (National) programme","According to Dir. 2002/63/EC",null,null,null,"E100A","Primary production",null,"Accredited","United Kingdom",null,null,"2017.97",2017,null,null,"RF-00000085-CHE","Nitrate",null,"Individual",null,"F008A","Colorimetry, Spectroscopy (Spectrometry) and Photometry",null,"ISO/IEC17025","Milligram/kilogram",null,50,null,null,3910.2,null,"No",null,null,null,null,"Whole weight","Numerical Value"]
[236512,null,"English","United Kingdom","UKE12","United Kingdom","UKE12",null,null,null,null,"P0251020A",null,"Lettuce",null,null,"Unprocessed",null,null,null,null,null,null,null,null,null,null,2017,"2017-10-23","2017-10-23",null,null,"Objective Sampling","Official (National) programme","According to Dir. 2002/63/EC",null,null,null,"E100A","Primary production",null,"Accredited","United Kingdom",null,null,"2017.98",2017,null,null,"RF-00000085-CHE","Nitrate",null,"Individual",null,"F008A","Colorimetry, Spectroscopy (Spectrometry) and Photometry",null,"ISO/IEC17025","Milligram/kilogram",null,50,null,null,2881.2,null,"No",null,null,null,null,"Whole weight","Numerical Value"]
[236513,null,"English","United Kingdom","UKE12","United Kingdom","UKE12",null,null,null,null,"P0251020A",null,"Lettuce",null,null,"Unprocessed",null,null,null,null,null,null,null,null,null,null,2017,"2017-10-23","2017-10-23",null,null,"Objective Sampling","Official (National) programme","According to Dir. 2002/63/EC",null,null,null,"E100A","Primary production",null,"Accredited","United Kingdom",null,null,"2017.99",2017,null,null,"RF-00000085-CHE","Nitrate",null,"Individual",null,"F008A","Colorimetry, Spectroscopy (Spectrometry) and Photometry",null,"ISO/IEC17025","Milligram/kilogram",null,50,null,null,2820.3,null,"No",null,null,null,null,"Whole weight","Numerical Value"]
[236058,null,"English","United Kingdom","UKK4","United Kingdom","UKK4",null,null,null,null,"P0251020A",null,"Lettuce",null,null,"Unprocessed",null,null,null,null,null,null,null,null,null,null,2017,"2017-10-17","2017-10-17",null,null,"Objective Sampling","Official (National) programme","According to Dir. 2002/63/EC",null,null,null,"E100A","Primary production",null,"Accredited","United Kingdom",null,null,"2017.100",2017,null,null,"RF-00000085-CHE","Nitrate",null,"Individual",null,"F008A","Colorimetry, Spectroscopy (Spectrometry) and Photometry",null,"ISO/IEC17025","Milligram/kilogram",null,50,null,null,448.5,null,"No",null,null,null,null,"Whole weight","Numerical Value"]
[236059,null,"English","United Kingdom","UKK4","United Kingdom","UKK4",null,null,null,null,"P0251020A",null,"Lettuce",null,null,"Unprocessed",null,null,null,null,null,null,null,null,null,null,2017,"2017-10-17","2017-10-17",null,null,"Objective Sampling","Official (National) programme","According to Dir. 2002/63/EC",null,null,null,"E100A","Primary production",null,"Accredited","United Kingdom",null,null,"2017.101",2017,null,null,"RF-00000085-CHE","Nitrate",null,"Individual",null,"F008A","Colorimetry, Spectroscopy (Spectrometry) and Photometry",null,"ISO/IEC17025","Milligram/kilogram",null,50,null,null,59.9,null,"No",null,null,null,null,"Whole weight","Numerical Value"]
[236060,null,"English","United Kingdom","UKK4","United Kingdom","UKK4",null,null,null,null,"P0252030A",null,"Other (Swiss chard)",null,null,"Unprocessed",null,null,null,null,null,null,null,null,null,null,2017,"2017-10-17","2017-10-17",null,null,"Objective Sampling","Official (National) programme","According to Dir. 2002/63/EC",null,null,null,"E100A","Primary production",null,"Accredited","United Kingdom",null,null,"2017.102",2017,null,null,"RF-00000085-CHE","Nitrate",null,"Individual",null,"F008A","Colorimetry, Spectroscopy (Spectrometry) and Photometry",null,"ISO/IEC17025","Milligram/kilogram",null,50,null,null,1146.0999999999999,null,"No",null,null,null,null,"Whole weight","Numerical Value"]
[236061,null,"English","United Kingdom","UKK4","United Kingdom","UKK4",null,null,null,null,"P0252030A",null,"Other (Mixed chard)",null,null,"Unprocessed",null,null,null,null,null,null,null,null,null,null,2017,"2017-10-17","2017-10-17",null,null,"Objective Sampling","Official (National) programme","According to Dir. 2002/63/EC",null,null,null,"E100A","Primary production",null,"Accredited","United Kingdom",null,null,"2017.103",2017,null,null,"RF-00000085-CHE","Nitrate",null,"Individual",null,"F008A","Colorimetry, Spectroscopy (Spectrometry) and Photometry",null,"ISO/IEC17025","Milligram/kilogram",null,50,null,null,1519.2,null,"No",null,null,null,null,"Whole weight","Numerical Value"]
[235171,null,"English","United Kingdom","UKJ42","United Kingdom","UKJ42",null,null,null,null,"P0251020A",null,"Lettuce",null,null,"Unprocessed",null,null,null,null,null,null,null,null,null,null,2017,"2017-10-03","2017-10-03",null,null,"Objective Sampling","Official (National) programme","According to Dir. 2002/63/EC",null,null,null,"E100A","Primary production",null,"Accredited","United Kingdom",null,null,"2017.104",2017,null,null,"RF-00000085-CHE","Nitrate",null,"Individual",null,"F008A","Colorimetry, Spectroscopy (Spectrometry) and Photometry",null,"ISO/IEC17025","Milligram/kilogram",null,50,null,null,2020.8,null,"No",null,null,null,null,"Whole weight","Numerical Value"]
[235172,null,"English","United Kingdom","UKJ42","United Kingdom","UKJ42",null,null,null,null,"P0251020A",null,"Lettuce",null,null,"Unprocessed",null,null,null,null,null,null,null,null,null,null,2017,"2017-10-03","2017-10-03",null,null,"Objective Sampling","Official (National) programme","According to Dir. 2002/63/EC",null,null,null,"E100A","Primary production",null,"Accredited","United Kingdom",null,null,"2017.105",2017,null,null,"RF-00000085-CHE","Nitrate",null,"Individual",null,"F008A","Colorimetry, Spectroscopy (Spectrometry) and Photometry",null,"ISO/IEC17025","Milligram/kilogram",null,50,null,null,2438.9,null,"No",null,null,null,null,"Whole weight","Numerical Value"]
[235173,null,"English","United Kingdom","UKJ42","United Kingdom","UKJ42",null,null,null,null,"P0252010A",null,"Spinach",null,null,"Unprocessed",null,null,null,null,null,null,null,null,null,null,2017,"2017-10-03","2017-10-03",null,null,"Objective Sampling","Official (National) programme","According to Dir. 2002/63/EC",null,null,null,"E100A","Primary production",null,"Accredited","United Kingdom",null,null,"2017.106",2017,null,null,"RF-00000085-CHE","Nitrate",null,"Individual",null,"F008A","Colorimetry, Spectroscopy (Spectrometry) and Photometry",null,"ISO/IEC17025","Milligram/kilogram",null,50,null,null,1608.6,null,"No",null,null,null,null,"Whole weight","Numerical Value"]
[235174,null,"English","United Kingdom","UKJ24","United Kingdom","UKJ24",null,null,null,null,"P0251020A",null,"Lettuce",null,null,"Unprocessed",null,null,null,null,null,null,null,null,null,null,2017,"2017-10-04","2017-10-04",null,null,"Objective Sampling","Official (National) programme","According to Dir. 2002/63/EC",null,null,null,"E100A","Primary production",null,"Accredited","United Kingdom",null,null,"2017.107",2017,null,null,"RF-00000085-CHE","Nitrate",null,"Individual",null,"F008A","Colorimetry, Spectroscopy (Spectrometry) and Photometry",null,"ISO/IEC17025","Milligram/kilogram",null,50,null,null,862.8,null,"No",null,null,null,null,"Whole weight","Numerical Value"]
[235175,null,"English","United Kingdom","UKJ42","United Kingdom","UKJ42",null,null,null,null,"P0251020A",null,"Lettuce",null,null,"Unprocessed",null,null,null,null,null,null,null,null,null,null,2017,"2017-10-04","2017-10-04",null,null,"Objective Sampling","Official (National) programme","According to Dir. 2002/63/EC",null,null,null,"E100A","Primary production",null,"Accredited","United Kingdom",null,null,"2017.108",2017,null,null,"RF-00000085-CHE","Nitrate",null,"Individual",null,"F008A","Colorimetry, Spectroscopy (Spectrometry) and Photometry",null,"ISO/IEC17025","Milligram/kilogram",null,50,null,null,1318.3,null,"No",null,null,null,null,"Whole weight","Numerical Value"]
[237353,null,"English","United Kingdom","UKD43","United Kingdom","UKD43",null,null,null,null,"P0251020A",null,"Lettuce",null,null,"Unprocessed",null,null,null,null,null,null,null,null,null,null,2017,"2017-11-20","2017-11-20",null,null,"Objective Sampling","Official (National) programme","According to Dir. 2002/63/EC",null,null,null,"E100A","Primary production",null,"Accredited","United Kingdom",null,null,"2017.109",2017,null,null,"RF-00000085-CHE","Nitrate",null,"Individual",null,"F008A","Colorimetry, Spectroscopy (Spectrometry) and Photometry",null,"ISO/IEC17025","Milligram/kilogram",null,50,null,null,4518.2,null,"No",null,null,null,null,"Whole weight","Numerical Value"]
[237354,null,"English","United Kingdom","UKD43","United Kingdom","UKD43",null,null,null,null,"P0251020A",null,"Lettuce",null,null,"Unprocessed",null,null,null,null,null,null,null,null,null,null,2017,"2017-11-20","2017-11-20",null,null,"Objective Sampling","Official (National) programme","According to Dir. 2002/63/EC",null,null,null,"E100A","Primary production",null,"Accredited","United Kingdom",null,null,"2017.110",2017,null,null,"RF-00000085-CHE","Nitrate",null,"Individual",null,"F008A","Colorimetry, Spectroscopy (Spectrometry) and Photometry",null,"ISO/IEC17025","Milligram/kilogram",null,50,null,null,3040.1,null,"No",null,null,null,null,"Whole weight","Numerical Value"]
[237355,null,"English","United Kingdom","UKD43","United Kingdom","UKD43",null,null,null,null,"P0251020A",null,"Lettuce",null,null,"Unprocessed",null,null,null,null,null,null,null,null,null,null,2017,"2017-11-20","2017-11-20",null,null,"Objective Sampling","Official (National) programme","According to Dir. 2002/63/EC",null,null,null,"E100A","Primary production",null,"Accredited","United Kingdom",null,null,"2017.111",2017,null,null,"RF-00000085-CHE","Nitrate",null,"Individual",null,"F008A","Colorimetry, Spectroscopy (Spectrometry) and Photometry",null,"ISO/IEC17025","Milligram/kilogram",null,50,null,null,2828.1,null,"No",null,null,null,null,"Whole weight","Numerical Value"]
[237356,null,"English","United Kingdom","UKD43","United Kingdom","UKD43",null,null,null,null,"P0251020A",null,"Lettuce",null,null,"Unprocessed",null,null,null,null,null,null,null,null,null,null,2017,"2017-11-20","2017-11-20",null,null,"Objective Sampling","Official (National) programme","According to Dir. 2002/63/EC",null,null,null,"E100A","Primary production",null,"Accredited","United Kingdom",null,null,"2017.112",2017,null,null,"RF-00000085-CHE","Nitrate",null,"Individual",null,"F008A","Colorimetry, Spectroscopy (Spectrometry) and Photometry",null,"ISO/IEC17025","Milligram/kilogram",null,50,null,null,1961.4,null,"No",null,null,null,null,"Whole weight","Numerical Value"]
[237501,null,"English","United Kingdom","UKG22","Italy",null,null,null,null,null,"P0251060A",null,"Imported rocket",null,null,"Unprocessed",null,null,null,null,null,null,null,null,null,null,2017,"2017-11-22","2017-11-22",null,null,"Objective Sampling","Official (National) programme","According to Dir. 2002/63/EC",null,null,null,"E510A","Wholesale",null,"Accredited","United Kingdom",null,null,"2017.113",2017,null,null,"RF-00000085-CHE","Nitrate",null,"Individual",null,"F008A","Colorimetry, Spectroscopy (Spectrometry) and Photometry",null,"ISO/IEC17025","Milligram/kilogram",null,50,null,null,3353.7,null,"No",null,null,null,null,"Whole weight","Numerical Value"]
[237502,null,"English","United Kingdom","UKG22","Spain",null,null,null,null,null,"P0251020A",null,"Imported lettuce",null,null,"Unprocessed",null,null,null,null,null,null,null,null,null,null,2017,"2017-11-22","2017-11-22",null,null,"Objective Sampling","Official (National) programme","According to Dir. 2002/63/EC",null,null,null,"E510A","Wholesale",null,"Accredited","United Kingdom",null,null,"2017.114",2017,null,null,"RF-00000085-CHE","Nitrate",null,"Individual",null,"F008A","Colorimetry, Spectroscopy (Spectrometry) and Photometry",null,"ISO/IEC17025","Milligram/kilogram",null,50,null,null,891.6,null,"No",null,null,null,null,"Whole weight","Numerical Value"]
[237503,null,"English","United Kingdom","UKG22","Spain",null,null,null,null,null,"P0251020A",null,"Imported lettuce",null,null,"Unprocessed",null,null,null,null,null,null,null,null,null,null,2017,"2017-11-22","2017-11-22",null,null,"Objective Sampling","Official (National) programme","According to Dir. 2002/63/EC",null,null,null,"E510A","Wholesale",null,"Accredited","United Kingdom",null,null,"2017.115",2017,null,null,"RF-00000085-CHE","Nitrate",null,"Individual",null,"F008A","Colorimetry, Spectroscopy (Spectrometry) and Photometry",null,"ISO/IEC17025","Milligram/kilogram",null,50,null,null,768.3,null,"No",null,null,null,null,"Whole weight","Numerical Value"]
[237504,null,"English","United Kingdom","UKG22","Spain",null,null,null,null,null,"P0252010A",null,"Imported spinach",null,null,"Unprocessed",null,null,null,null,null,null,null,null,null,null,2017,"2017-11-22","2017-11-22",null,null,"Objective Sampling","Official (National) programme","According to Dir. 2002/63/EC",null,null,null,"E510A","Wholesale",null,"Accredited","United Kingdom",null,null,"2017.116",2017,null,null,"RF-00000085-CHE","Nitrate",null,"Individual",null,"F008A","Colorimetry, Spectroscopy (Spectrometry) and Photometry",null,"ISO/IEC17025","Milligram/kilogram",null,50,null,null,4779.8,null,"No",null,null,null,null,"Whole weight","Numerical Value"]
[237297,null,"English","United Kingdom","UKH12","United Kingdom","UKH12",null,null,null,null,"P0251020A",null,"Lett, non-ice, protected, winter",null,null,"Unprocessed",null,null,null,null,null,null,null,null,null,null,2017,"2017-11-14","2017-11-14",null,null,"Objective Sampling","Official (National) programme","According to Dir. 2002/63/EC",null,null,null,"E100A","Primary production",null,"Accredited","United Kingdom",null,null,"2017.117",2017,null,null,"RF-00000085-CHE","Nitrate",null,"Individual",null,"F008A","Colorimetry, Spectroscopy (Spectrometry) and Photometry",null,"ISO/IEC17025","Milligram/kilogram",null,50,null,null,3477.6,null,"No",null,null,null,null,"Whole weight","Numerical Value"]
[237298,null,"English","United Kingdom","UKF30","United Kingdom","UKF30",null,null,null,null,"P0251020A",null,"Lett, non-ice, protected, winter",null,null,"Unprocessed",null,null,null,null,null,null,null,null,null,null,2017,"2017-11-14","2017-11-14",null,null,"Objective Sampling","Official (National) programme","According to Dir. 2002/63/EC",null,null,null,"E100A","Primary production",null,"Accredited","United Kingdom",null,null,"2017.118",2017,null,null,"RF-00000085-CHE","Nitrate",null,"Individual",null,"F008A","Colorimetry, Spectroscopy (Spectrometry) and Photometry",null,"ISO/IEC17025","Milligram/kilogram",null,50,null,null,4166.5,null,"No",null,null,null,null,"Whole weight","Numerical Value"]
[237015,null,"English","United Kingdom","UKJ42","United Kingdom","UKJ42",null,null,null,null,"P0251020A",null,"Lett, non-ice, open air, winter",null,null,"Unprocessed",null,null,null,null,null,null,null,null,null,null,2017,"2017-11-01","2017-11-01",null,null,"Objective Sampling","Official (National) programme","According to Dir. 2002/63/EC",null,null,null,"E100A","Primary production",null,"Accredited","United Kingdom",null,null,"2017.121",2017,null,null,"RF-00000085-CHE","Nitrate",null,"Individual",null,"F008A","Colorimetry, Spectroscopy (Spectrometry) and Photometry",null,"ISO/IEC17025","Milligram/kilogram",null,50,null,null,2447.6,null,"No",null,null,null,null,"Whole weight","Numerical Value"]
[237016,null,"English","United Kingdom","UKJ42","United Kingdom","UKJ42",null,null,null,null,"P0251020A",null,"Lett, non-ice, open air, winter",null,null,"Unprocessed",null,null,null,null,null,null,null,null,null,null,2017,"2017-11-01","2017-11-01",null,null,"Objective Sampling","Official (National) programme","According to Dir. 2002/63/EC",null,null,null,"E100A","Primary production",null,"Accredited","United Kingdom",null,null,"2017.122",2017,null,null,"RF-00000085-CHE","Nitrate",null,"Individual",null,"F008A","Colorimetry, Spectroscopy (Spectrometry) and Photometry",null,"ISO/IEC17025","Milligram/kilogram",null,50,null,null,2214.4,null,"No",null,null,null,null,"Whole weight","Numerical Value"]
[237017,null,"English","United Kingdom","UKJ42","United Kingdom","UKJ42",null,null,null,null,"P0251020A",null,"Lett, non-ice, open air, winter",null,null,"Unprocessed",null,null,null,null,null,null,null,null,null,null,2017,"2017-11-01","2017-11-01",null,null,"Objective Sampling","Official (National) programme","According to Dir. 2002/63/EC",null,null,null,"E100A","Primary production",null,"Accredited","United Kingdom",null,null,"2017.123",2017,null,null,"RF-00000085-CHE","Nitrate",null,"Individual",null,"F008A","Colorimetry, Spectroscopy (Spectrometry) and Photometry",null,"ISO/IEC17025","Milligram/kilogram",null,50,null,null,3177.9,null,"No",null,null,null,null,"Whole weight","Numerical Value"]
[237505,null,"English","United Kingdom","UKJ42","Spain",null,null,null,null,null,"P0251020A",null,"Imported lettuce",null,null,"Unprocessed",null,null,null,null,null,null,null,null,null,null,2017,"2017-11-21","2017-11-21",null,null,"Objective Sampling","Official (National) programme","According to Dir. 2002/63/EC",null,null,null,"E510A","Wholesale",null,"Accredited","United Kingdom",null,null,"2017.124",2017,null,null,"RF-00000085-CHE","Nitrate",null,"Individual",null,"F008A","Colorimetry, Spectroscopy (Spectrometry) and Photometry",null,"ISO/IEC17025","Milligram/kilogram",null,50,null,null,4739.8999999999996,null,"No",null,null,null,null,"Whole weight","Numerical Value"]
[237507,null,"English","United Kingdom","UKJ42","United Kingdom","UKJ42",null,null,null,null,"P0252010A",null,"Spinach",null,null,"Unprocessed",null,null,null,null,null,null,null,null,null,null,2017,"2017-11-21","2017-11-21",null,null,"Objective Sampling","Official (National) programme","According to Dir. 2002/63/EC",null,null,null,"E100A","Primary production",null,"Accredited","United Kingdom",null,null,"2017.125",2017,null,null,"RF-00000085-CHE","Nitrate",null,"Individual",null,"F008A","Colorimetry, Spectroscopy (Spectrometry) and Photometry",null,"ISO/IEC17025","Milligram/kilogram",null,50,null,null,1844.2,null,"No",null,null,null,null,"Whole weight","Numerical Value"]
[237506,null,"English","United Kingdom","UKJ23","United Kingdom","UKJ23",null,null,null,null,"P0251020A",null,"Lett, non-ice, protected, winter",null,null,"Unprocessed",null,null,null,null,null,null,null,null,null,null,2017,"2017-11-21","2017-11-21",null,null,"Objective Sampling","Official (National) programme","According to Dir. 2002/63/EC",null,null,null,"E100A","Primary production",null,"Accredited","United Kingdom",null,null,"2017.126",2017,null,null,"RF-00000085-CHE","Nitrate",null,"Individual",null,"F008A","Colorimetry, Spectroscopy (Spectrometry) and Photometry",null,"ISO/IEC17025","Milligram/kilogram",null,50,null,null,1349.5,null,"No",null,null,null,null,"Whole weight","Numerical Value"]
[237613,null,"English","United Kingdom","UKJ42","Spain",null,null,null,null,null,"P0251020A",null,"Imported lettuce",null,null,"Unprocessed",null,null,null,null,null,null,null,null,null,null,2017,"2017-11-28","2017-11-28",null,null,"Objective Sampling","Official (National) programme","According to Dir. 2002/63/EC",null,null,null,"E510A","Wholesale",null,"Accredited","United Kingdom",null,null,"2017.127",2017,null,null,"RF-00000085-CHE","Nitrate",null,"Individual",null,"F008A","Colorimetry, Spectroscopy (Spectrometry) and Photometry",null,"ISO/IEC17025","Milligram/kilogram",null,50,null,null,1310.7,null,"No",null,null,null,null,"Whole weight","Numerical Value"]
[237614,null,"English","United Kingdom","UKJ24","United Kingdom","UKJ24",null,null,null,null,"P0251020A",null,"Lett, non-ice, protected, winter",null,null,"Unprocessed",null,null,null,null,null,null,null,null,null,null,2017,"2017-11-28","2017-11-28",null,null,"Objective Sampling","Official (National) programme","According to Dir. 2002/63/EC",null,null,null,"E100A","Primary production",null,"Accredited","United Kingdom",null,null,"2017.128",2017,null,null,"RF-00000085-CHE","Nitrate",null,"Individual",null,"F008A","Colorimetry, Spectroscopy (Spectrometry) and Photometry",null,"ISO/IEC17025","Milligram/kilogram",null,50,null,null,3851.7,null,"No",null,null,null,null,"Whole weight","Numerical Value"]
[237615,null,"English","United Kingdom","UKJ33","Portugal",null,null,null,null,null,"P0251060A",null,"Imported rocket",null,null,"Unprocessed",null,null,null,null,null,null,null,null,null,null,2017,"2017-11-28","2017-11-28",null,null,"Objective Sampling","Official (National) programme","According to Dir. 2002/63/EC",null,null,null,"E510A","Wholesale",null,"Accredited","United Kingdom",null,null,"2017.129",2017,null,null,"RF-00000085-CHE","Nitrate",null,"Individual",null,"F008A","Colorimetry, Spectroscopy (Spectrometry) and Photometry",null,"ISO/IEC17025","Milligram/kilogram",null,50,null,null,2839.1,null,"No",null,null,null,null,"Whole weight","Numerical Value"]
[237735,null,"English","United Kingdom","UKD43","United Kingdom","UKD43",null,null,null,null,"P0251020A",null,"Lett, non-ice, protected, winter",null,null,"Unprocessed",null,null,null,null,null,null,null,null,null,null,2017,"2017-12-13","2017-12-13",null,null,"Objective Sampling","Official (National) programme","According to Dir. 2002/63/EC",null,null,null,"E100A","Primary production",null,"Accredited","United Kingdom",null,null,"2017.130",2017,null,null,"RF-00000085-CHE","Nitrate",null,"Individual",null,"F008A","Colorimetry, Spectroscopy (Spectrometry) and Photometry",null,"ISO/IEC17025","Milligram/kilogram",null,50,null,null,4538,null,"No",null,null,null,null,"Whole weight","Numerical Value"]
[237736,null,"English","United Kingdom","UKD43","United Kingdom","UKD43",null,null,null,null,"P0251020A",null,"Lett, non-ice, protected, winter",null,null,"Unprocessed",null,null,null,null,null,null,null,null,null,null,2017,"2017-12-13","2017-12-13",null,null,"Objective Sampling","Official (National) programme","According to Dir. 2002/63/EC",null,null,null,"E100A","Primary production",null,"Accredited","United Kingdom",null,null,"2017.131",2017,null,null,"RF-00000085-CHE","Nitrate",null,"Individual",null,"F008A","Colorimetry, Spectroscopy (Spectrometry) and Photometry",null,"ISO/IEC17025","Milligram/kilogram",null,50,null,null,3213.5,null,"No",null,null,null,null,"Whole weight","Numerical Value"]
[237737,null,"English","United Kingdom","UKD43","United Kingdom","UKD43",null,null,null,null,"P0251020A",null,"Lett, non-ice, protected, winter",null,null,"Unprocessed",null,null,null,null,null,null,null,null,null,null,2017,"2017-12-13","2017-12-13",null,null,"Objective Sampling","Official (National) programme","According to Dir. 2002/63/EC",null,null,null,"E100A","Primary production",null,"Accredited","United Kingdom",null,null,"2017.132",2017,null,null,"RF-00000085-CHE","Nitrate",null,"Individual",null,"F008A","Colorimetry, Spectroscopy (Spectrometry) and Photometry",null,"ISO/IEC17025","Milligram/kilogram",null,50,null,null,3595.9,null,"No",null,null,null,null,"Whole weight","Numerical Value"]
[237738,null,"English","United Kingdom","UKD43","United Kingdom","UKD43",null,null,null,null,"P0251020A",null,"Lett, non-ice, protected, winter",null,null,"Unprocessed",null,null,null,null,null,null,null,null,null,null,2017,"2017-12-13","2017-12-13",null,null,"Objective Sampling","Official (National) programme","According to Dir. 2002/63/EC",null,null,null,"E100A","Primary production",null,"Accredited","United Kingdom",null,null,"2017.133",2017,null,null,"RF-00000085-CHE","Nitrate",null,"Individual",null,"F008A","Colorimetry, Spectroscopy (Spectrometry) and Photometry",null,"ISO/IEC17025","Milligram/kilogram",null,50,null,null,4729.6000000000004,null,"No",null,null,null,null,"Whole weight","Numerical Value"]
[237757,null,"English","United Kingdom","UKG22","Spain",null,null,null,null,null,"P0252010A",null,"Imported spinach",null,null,"Unprocessed",null,null,null,null,null,null,null,null,null,null,2017,"2017-12-18","2017-12-18",null,null,"Objective Sampling","Official (National) programme","According to Dir. 2002/63/EC",null,null,null,"E510A","Wholesale",null,"Accredited","United Kingdom",null,null,"2017.134",2017,null,null,"RF-00000085-CHE","Nitrate",null,"Individual",null,"F008A","Colorimetry, Spectroscopy (Spectrometry) and Photometry",null,"ISO/IEC17025","Milligram/kilogram",null,50,null,null,2418.1,null,"No",null,null,null,null,"Whole weight","Numerical Value"]
[237758,null,"English","United Kingdom","UKG22","Italy",null,null,null,null,null,"P0252010A",null,"Imported spinach",null,null,"Unprocessed",null,null,null,null,null,null,null,null,null,null,2017,"2017-12-18","2017-12-18",null,null,"Objective Sampling","Official (National) programme","According to Dir. 2002/63/EC",null,null,null,"E510A","Wholesale",null,"Accredited","United Kingdom",null,null,"2017.135",2017,null,null,"RF-00000085-CHE","Nitrate",null,"Individual",null,"F008A","Colorimetry, Spectroscopy (Spectrometry) and Photometry",null,"ISO/IEC17025","Milligram/kilogram",null,50,null,null,2345.1999999999998,null,"No",null,null,null,null,"Whole weight","Numerical Value"]
[235579,null,"English","United Kingdom","UKG22","Italy",null,null,null,null,null,"P0251060A",null,"Imported rocket",null,null,"Unprocessed",null,null,null,null,null,null,null,null,null,null,2017,"2017-12-18","2017-12-18",null,null,"Objective Sampling","Official (National) programme","According to Dir. 2002/63/EC",null,null,null,"E510A","Wholesale",null,"Accredited","United Kingdom",null,null,"2017.136",2017,null,null,"RF-00000085-CHE","Nitrate",null,"Individual",null,"F008A","Colorimetry, Spectroscopy (Spectrometry) and Photometry",null,"ISO/IEC17025","Milligram/kilogram",null,50,null,null,6512,null,"No",null,null,null,null,"Whole weight","Numerical Value"]
[237760,null,"English","United Kingdom","UKG22","Italy",null,null,null,null,null,"P0251060A",null,"Imported rocket",null,null,"Unprocessed",null,null,null,null,null,null,null,null,null,null,2017,"2017-12-18","2017-12-18",null,null,"Objective Sampling","Official (National) programme","According to Dir. 2002/63/EC",null,null,null,{"$f":"IF(AN194=\"Wholesale\",\"E510A\",\"E100A\")","v":"E510A"},"Wholesale",null,"Accredited","United Kingdom",null,null,"2017.137",2017,null,null,"RF-00000085-CHE","Nitrate",null,"Individual",null,"F008A","Colorimetry, Spectroscopy (Spectrometry) and Photometry",null,"ISO/IEC17025","Milligram/kilogram",null,50,null,null,6024.4,null,"No",null,null,null,null,"Whole weight","Numerical Value"]
[237642,null,"English","United Kingdom","UKJ42","Spain",null,null,null,null,null,"P0251020A",null,"Imported lettuce",null,null,"Unprocessed",null,null,null,null,null,null,null,null,null,null,2017,"2017-12-05","2017-12-05",null,null,"Objective Sampling","Official (National) programme","According to Dir. 2002/63/EC",null,null,null,"E510A","Wholesale",null,"Accredited","United Kingdom",null,null,"2017.138",2017,null,null,"RF-00000085-CHE","Nitrate",null,"Individual",null,"F008A","Colorimetry, Spectroscopy (Spectrometry) and Photometry",null,"ISO/IEC17025","Milligram/kilogram",null,50,null,null,1188.0999999999999,null,"No",null,null,null,null,"Whole weight","Numerical Value"]
[237643,null,"English","United Kingdom","UKJ42","Spain",null,null,null,null,null,"P0252010A",null,"Imported spinach",null,null,"Unprocessed",null,null,null,null,null,null,null,null,null,null,2017,"2017-12-05","2017-12-05",null,null,"Objective Sampling","Official (National) programme","According to Dir. 2002/63/EC",null,null,null,"E510A","Wholesale",null,"Accredited","United Kingdom",null,null,"2017.139",2017,null,null,"RF-00000085-CHE","Nitrate",null,"Individual",null,"F008A","Colorimetry, Spectroscopy (Spectrometry) and Photometry",null,"ISO/IEC17025","Milligram/kilogram",null,50,null,null,2811.6,null,"No",null,null,null,null,"Whole weight","Numerical Value"]
[237644,null,"English","United Kingdom","UKJ23","United Kingdom","UKJ23",null,null,null,null,"P0251020A",null,"Lett, non-ice, protected, winter",null,null,"Unprocessed",null,null,null,null,null,null,null,null,null,null,2017,"2017-12-05","2017-12-05",null,null,"Objective Sampling","Official (National) programme","According to Dir. 2002/63/EC",null,null,null,"E100A","Primary production",null,"Accredited","United Kingdom",null,null,"2017.140",2017,null,null,"RF-00000085-CHE","Nitrate",null,"Individual",null,"F008A","Colorimetry, Spectroscopy (Spectrometry) and Photometry",null,"ISO/IEC17025","Milligram/kilogram",null,50,null,null,3430.8,null,"No",null,null,null,null,"Whole weight","Numerical Value"]
[237739,null,"English","United Kingdom","UKJ42","Spain",null,null,null,null,null,"P0251020A",null,"Imported lettuce",null,null,"Unprocessed",null,null,null,null,null,null,null,null,null,null,2017,"2017-12-12","2017-12-12",null,null,"Objective Sampling","Official (National) programme","According to Dir. 2002/63/EC",null,null,null,"E510A","Wholesale",null,"Accredited","United Kingdom",null,null,"2017.141",2017,null,null,"RF-00000085-CHE","Nitrate",null,"Individual",null,"F008A","Colorimetry, Spectroscopy (Spectrometry) and Photometry",null,"ISO/IEC17025","Milligram/kilogram",null,50,null,null,996.3,null,"No",null,null,null,null,"Whole weight","Numerical Value"]
[237740,null,"English","United Kingdom","UKJ33","Italy",null,null,null,null,null,"P0251060A",null,"Imported rocket",null,null,"Unprocessed",null,null,null,null,null,null,null,null,null,null,2017,"2017-12-12","2017-12-12",null,null,"Objective Sampling","Official (National) programme","According to Dir. 2002/63/EC",null,null,null,"E510A","Wholesale",null,"Accredited","United Kingdom",null,null,"2017.142.2",2017,null,null,"RF-00000085-CHE","Nitrate",null,"Individual",null,"F008A","Colorimetry, Spectroscopy (Spectrometry) and Photometry",null,"ISO/IEC17025","Milligram/kilogram",null,50,null,null,5696.6,null,"No",null,null,null,null,"Whole weight","Numerical Value"]
[237741,null,"English","United Kingdom","UKJ24","United Kingdom","UKJ24",null,null,null,null,"P0251020A",null,"Lett, non-ice, protected, winter",null,null,"Unprocessed",null,null,null,null,null,null,null,null,null,null,2017,"2017-12-12","2017-12-12",null,null,"Objective Sampling","Official (National) programme","According to Dir. 2002/63/EC",null,null,null,"E100A","Primary production",null,"Accredited","United Kingdom",null,null,"2017.143.2",2017,null,null,"RF-00000085-CHE","Nitrate",null,"Individual",null,"F008A","Colorimetry, Spectroscopy (Spectrometry) and Photometry",null,"ISO/IEC17025","Milligram/kilogram",null,50,null,null,3767.4,null,"No",null,null,null,null,"Whole weight","Numerical Value"]
[237742,null,"English","United Kingdom","UKJ42","Spain",null,null,null,null,null,"P0251020A",null,"Imported lettuce",null,null,"Unprocessed",null,null,null,null,null,null,null,null,null,null,2017,"2017-12-13","2017-12-13",null,null,"Objective Sampling","Official (National) programme","According to Dir. 2002/63/EC",null,null,null,"E510A","Wholesale",null,"Accredited","United Kingdom",null,null,"2017.144.2",2017,null,null,"RF-00000085-CHE","Nitrate",null,"Individual",null,"F008A","Colorimetry, Spectroscopy (Spectrometry) and Photometry",null,"ISO/IEC17025","Milligram/kilogram",null,50,null,null,913.4,null,"No",null,null,null,null,"Whole weight","Numerical Value"]
[237743,null,"English","United Kingdom","UKJ42","Italy",null,null,null,null,null,"P0252010A",null,"Imported spinach",null,null,"Unprocessed",null,null,null,null,null,null,null,null,null,null,2017,"2017-12-13","2017-12-13",null,null,"Objective Sampling","Official (National) programme","According to Dir. 2002/63/EC",null,null,null,"E510A","Wholesale",null,"Accredited","United Kingdom",null,null,"2017.145.2",2017,null,null,"RF-00000085-CHE","Nitrate",null,"Individual",null,"F008A","Colorimetry, Spectroscopy (Spectrometry) and Photometry",null,"ISO/IEC17025","Milligram/kilogram",null,50,null,null,1905,null,"No",null,null,null,null,"Whole weight","Numerical Value"]
[237744,null,"English","United Kingdom","UKJ23","United Kingdom","UKJ23",null,null,null,null,"P0251020A",null,"Lett, non-ice, protected, winter",null,null,"Unprocessed",null,null,null,null,null,null,null,null,null,null,2017,"2017-12-13","2017-12-13",null,null,"Objective Sampling","Official (National) programme","According to Dir. 2002/63/EC",null,null,null,"E100A","Primary production",null,"Accredited","United Kingdom",null,null,"2017.146.2",2017,null,null,"RF-00000085-CHE","Nitrate",null,"Individual",null,"F008A","Colorimetry, Spectroscopy (Spectrometry) and Photometry",null,"ISO/IEC17025","Milligram/kilogram",null,50,null,null,3163.8,null,"No",null,null,null,null,"Whole weight","Numerical Value"]

{"sheet":"Concise food classifcation","index":2,"n_rows":135,"n_cols":2,"rows_kept":135,"cut":false,"hidden":false,"merged":[]}
["Terminology Name","EFSA Concise Food Classification System"]
["http://www.efsa.europa.eu/EFSA/ScientificPanels/datex/efsa_locale-1178620753812_ConciseEuropeanConsumptionDatabase.htm"]
[]
["code","name"]
["C01","Cereals and cereal products"]
["C01A","Cereal-based mixed dishes"]
["C01B","Cereals and cereal products excl. cereal-based mixed dishes"]
["C01B_1","Cereal grains (Not specified type)"]
["C01B_1A","Cereal grains excl. Rice"]
["C01B_1B","Rice grains"]
["C01B_2","Cereal products (Not specified type)"]
["C01B_3","Bran and germ"]
["C02","Sugar and sugar products including chocolate"]
["C02_1","Chocolate and chocolate based products"]
["C02_2","Other sugar and sugar products"]
["C03","Fats (Vegetable and animal)"]
["C03_1","Animal fats and oils"]
["C03_1A","Fat of bovine animals and sheep"]
["C03_1B","Fat of poultry"]
["C03_1C","Fat of pig"]
["C03_1D","Marine oil"]
["C03_1E","Mixed animal fats"]
["C03_2","Vegetable fats and oils"]
["C03_3","Butter"]
["C04","Vegetables, nuts, pulses including carrots, tomato and leafy vegetables"]
["C04A","Vegetable soups"]
["C04B","Vegetables, nuts, pulses except vegetable soups"]
["C04B_1","Leafy vegetables"]
["C04B_2","Fungi"]
["C04B_3","Fresh herbs"]
["C04B_4","Brassica vegetables"]
["C04B_5","Pulses (Legumes)"]
["C04B_6","Nuts"]
["C04B_7","Other vegetables and vegetable products"]
["C04B_8","Stem and root vegetables"]
["C04B_8A","Root vegetables"]
["C04B_8B","Stem vegetables"]
["C04B_9","Oilseeds"]
["C04B_10","Dried vegetables"]
["C05","Starchy roots or potatoes"]
["C05_1","Peeled potatoes"]
["C05_2","Other potatoes"]
["C05_3","Other starchy roots excl. Potatoes"]
["C06","Fruits"]
["C06_1","Berries and small fruits"]
["C06_2","Other fruits"]
["C06_3","Dried fruits"]
["C07","Fruit and vegetable juices, soft drinks and bottled water"]
["C07A","Fruit and vegetable juices"]
["C07A_1","Fruit juices"]
["C07A_2","Vegetables juices"]
["C07B","Soft drinks with percentage of fruits lower than nectar"]
["C07C","Bottled water"]
["C08","Coffee, tea, cocoa"]
["C08_1","Coffee, tea, cocoa powder or dry leaves"]
["C08_1A","Coffee (Powder)"]
["C08_1B","Tea and other infusions (Powder or dry leaves)"]
["C08_1C","Cocoa (Powder or cocoa bean)"]
["C08_2","Coffee, tea, cocoa expressed as liquid"]
["C09","Alcoholic beverages"]
["C09A","Beer and substitutes"]
["C09B","Wine and substitutes"]
["C09C","Other alcoholic beverages and substitutes"]
["C10","Meat and meat products, offal"]
["C10A","Meat and meat products and substitutes"]
["C10A_1","Meat substitutes"]
["C10A_2","Bovine animals, sheep, pig and poultry meat"]
["C10A_2A","Bovine, sheep and goat meat"]
["C10A_2B","Pig meat"]
["C10A_2C","Poultry meat"]
["C10A_3","Game meat"]
["C10A_4","Other meat"]
["C10A_5","Processed meat products"]
["C10B","Edible offal and offal products"]
["C10B_1","Liver bovine, sheep, pig, poultry, horse"]
["C10B_1A","Liver bovine, poultry, sheep, pigs"]
["C10B_2","Kidney bovine, sheep, pig, poultry, horse"]
["C10B_3","Liver and kidney of game animals"]
["C10B_4","Other offal products (Trip, lung, stomach etc.)"]
["C10C","Meat based mixed dishes"]
["C11","Fish and seafood"]
["C11A","Seafood and seafood products"]
["C11A_1","Bivalve molluscs"]
["C11A_2","Cephalopods"]
["C11A_3","Crustaceans"]
["C11A_4","Other seafood and seafood products"]
["C11B","Fish and fish products"]
["C11B_1","Fish and fish products excl. Eels"]
["C11B_2","Eels and eel products"]
["C11C","Fish based mixed dishes"]
["C11D","Fish liver"]
["C12","Eggs"]
["C13","Milk and dairy based products and substitutes"]
["C13A","Milk and dairy based drinks and substitutes"]
["C13A_1","Milk and dairy drinks substitutes"]
["C13A_2","Milk and dairy drinks"]
["C13A_3","Milk and dairy based drinks and substitutes concentrated or powders"]
["C13B","Dairy based products and substitutes"]
["C13B_1","Dairy based products substitutes"]
["C13B_2","Dairy based products"]
["C13C","Cheese and substitutes"]
["C13C_1","Cheese substitutes"]
["C13C_2","Cheese"]
["C14","Miscellaneous / Food for special dietary uses"]
["C14A","Miscellaneous"]
["C14A_1","Algae as food"]
["C14A_2","Spices"]
["C14A_3","Dry herbs"]
["C14A_4","Salt"]
["C14A_5","Other miscellaneus products"]
["C14B","Food for special dietary uses"]
["C14B_1","Infant formulae and follow-on formulae"]
["C14B_1D","Other infant food"]
["C14B_2","Algae based supplements"]
["C14B_3","Non-algae based supplements"]
["C14B_4","Other food for special dietary uses"]
["C15","Tap water"]
["C16","Feed"]
["C16_A","Feed materials of plant origin with the exception of vegetable oils and their byproducts"]
["C16_B","Vegetable oils and their by-products"]
["C16_C","Feed materials of mineral origin"]
["C16_D","Animal fat, including milk fat and egg fat"]
["C16_E","Other land animal products including milk and milk products and eggs and egg products"]
["C16_F","Fish oil"]
["C16_G","Fish, other aquatic animals, their products and by-products with the exception of fish oil and fish protein hydrolysates containing more than 20 % fat (****)"]
["C16_H","Fish protein hydrolysates containing more than 20 % fat"]
["C16_I","The additives kaolinitic clay, calcium sulphate dihydrate, vermiculite, natrolitephonolite, synthetic calcium aluminates and clinoptilolite of sedimentary origin belonging to the functional groups of binders and anti-caking agents"]
["C16_J","Additives belonging to the functional group of compounds of trace elements"]
["C16_K","Premixtures"]
["C16_L","Compound feedingstuffs, with the exception of feed for fur animals, pet foods and feed for fish"]
["C16_M","Feed for fur animals, pets and fish"]
["C16_P","Other feed additives"]
["C16_Q","Other feed"]
["CXX","Not Specified"]
["XXXXXXA","Not in list"]